{"text_format":"1","workbook":"xlsx","n_sheets":8,"sheets":["GUIDE D'UTILISATION","MAQUETTE VIERGE","ANNEXE FINANCIERE","MUTUALISATIONS","extraction base OF","liste automatisée mentions","liste automatisée parcours","LISTES"],"not_rendered":{"charts":0,"images":8,"macros":1,"external_links":2,"defined_names":9,"comments":1,"pivot_tables":0},"unopened":[],"bounds":{"document_bytes":16777216,"sheet_cells":100000,"rows_first":2000,"rows_last":500,"rows_between":2000,"halvings":0,"cell_chars":16384,"cell_head_chars":4096},"cells_cut":0,"cells_raw":0,"read":"whole","date_system":"1900"}

{"sheet":"GUIDE D'UTILISATION","index":0,"n_rows":131,"n_cols":6,"rows_kept":131,"cut":false,"hidden":false,"merged":[[7,5,7,19],[7,27,7,31],[26,14,26,20],[73,1,76,11],[130,1,133,11]]}
[]
[]
[]
[]
[null,"DFIP / AFAF"]
[]
[]
[null,null,null,null,null,"\nELABORATION D'UNE MAQUETTE PEDAGOGIQUE"]
[]
[]
[]
[]
[]
[]
[]
[]
[]
[]
[]
[]
[]
[]
[]
[]
[]
[]
[]
[]
[]
[]
[]
[]
[]
[]
[]
[]
[]
[]
[]
[]
[]
[]
[]
[]
[]
[]
[]
[]
[]
[]
[]
[]
[]
[]
[]
[]
[]
[]
[]
[]
[]
[]
[]
[]
[]
[]
[]
[]
[]
[]
[]
[]
[]
[null,"1. SAISIE DES MODALITES PEDAGOGIQUES"]
[]
[]
[]
[]
[]
[]
[]
[]
[]
[]
[]
[]
[]
[]
[]
[]
[]
[]
[]
[]
[]
[]
[]
[]
[]
[]
[]
[]
[]
[]
[]
[]
[]
[]
[]
[]
[]
[]
[]
[]
[]
[]
[]
[]
[]
[]
[]
[]
[]
[]
[]
[]
[]
[]
[]
[]
[null,"2. SAISIE DES MODALITES DE CONTRÔLE DES CONNAISSANCES ET DES COMPETENCES"]

{"sheet":"MAQUETTE VIERGE","index":1,"n_rows":256,"n_cols":75,"rows_kept":256,"cut":false,"hidden":false,"merged":[[22,3,22,4],[23,3,23,4],[25,3,25,4],[4,3,4,4],[33,35,33,39],[65,9,66,9],[65,10,66,10],[65,11,66,11],[65,12,66,12],[6,5,6,6],[6,7,6,10],[32,3,34,3],[32,4,34,4],[32,5,34,5],[32,6,34,6],[32,7,34,7],[32,8,34,8],[33,10,33,15],[33,16,33,20],[65,13,66,13],[65,14,66,14],[14,3,14,4],[15,3,15,4],[30,0,30,15],[4,8,4,9],[12,0,12,2],[13,0,13,2],[14,0,14,2],[15,1,15,2],[7,0,7,2],[19,3,19,4],[20,3,20,4],[21,3,21,4],[16,0,16,2],[70,0,84,34],[91,16,91,34],[92,16,92,34],[93,16,93,28],[93,29,93,34],[94,21,95,21],[31,6,31,8],[31,9,34,9],[31,10,32,15],[32,0,34,0],[32,1,34,1],[32,2,34,2],[91,0,91,15],[31,0,31,2],[31,3,31,5],[65,3,66,3],[65,4,66,4],[65,5,66,5],[65,6,66,6],[65,7,66,7],[65,8,66,8],[92,0,92,2],[65,15,66,15],[65,0,66,0],[82,35,82,39],[126,0,127,0],[126,1,127,1],[126,2,127,2],[126,3,127,3],[126,4,127,4],[126,5,127,5],[126,6,127,6],[126,7,127,7],[126,8,127,8],[126,9,127,9],[126,10,127,10],[126,11,127,11],[126,12,127,12],[126,13,127,13],[126,14,127,14],[126,15,127,15],[93,2,95,2],[94,10,94,15],[94,16,94,20],[93,0,95,0],[93,1,95,1],[94,29,94,33],[94,34,95,34],[65,1,66,1],[65,2,66,2],[143,35,143,39],[152,0,152,15],[154,6,156,6],[154,7,156,7],[154,8,156,8],[155,10,155,15],[155,16,155,20],[94,22,94,26],[94,27,95,27],[94,28,95,28],[93,8,95,8],[93,3,95,3],[93,4,95,4],[93,5,95,5],[93,6,95,6],[93,7,95,7],[92,9,95,9],[92,10,93,15],[92,3,92,5],[92,6,92,8],[94,35,94,39],[131,0,145,34],[267,35,267,39],[206,35,206,39],[250,0,251,0],[250,1,251,1],[250,2,251,2],[250,3,251,3],[250,4,251,4],[250,5,251,5],[250,6,251,6],[250,7,251,7],[250,8,251,8],[250,9,251,9],[250,10,251,10],[250,11,251,11],[250,12,251,12],[250,13,251,13],[250,14,251,14],[250,15,251,15],[218,35,218,39],[255,0,269,34],[194,0,208,34],[215,16,215,34],[216,16,216,34],[217,16,217,28],[3,3,3,4],[6,3,6,4],[8,3,8,4],[7,3,7,4],[9,0,9,2],[9,3,9,4],[12,3,12,4],[13,3,13,4],[10,0,10,2],[10,3,10,4],[30,16,30,34],[31,16,31,34],[32,16,32,28],[32,29,32,34],[33,21,34,21],[33,22,33,26],[33,27,34,27],[33,28,34,28],[33,29,33,33],[33,34,34,34],[152,16,152,34],[153,16,153,34],[154,16,154,28],[154,29,154,34],[155,21,156,21],[155,22,155,26],[155,27,156,27],[155,28,156,28],[155,29,155,33],[155,34,156,34],[155,35,155,39],[153,0,153,2],[153,3,153,5],[153,6,153,8],[153,9,156,9],[153,10,154,15],[154,0,156,0],[154,1,156,1],[154,2,156,2],[154,3,156,3],[154,4,156,4],[154,5,156,5],[217,29,217,34],[218,21,219,21],[218,22,218,26],[218,27,219,27],[218,28,219,28],[218,29,218,33],[218,34,219,34],[215,0,215,15],[216,0,216,2],[216,3,216,5],[216,6,216,8],[216,9,219,9],[216,10,217,15],[217,0,219,0],[217,1,219,1],[217,2,219,2],[217,3,219,3],[217,4,219,4],[217,5,219,5],[217,6,219,6],[217,7,219,7],[217,8,219,8],[218,10,218,15],[218,16,218,20],[191,9,192,9],[191,10,192,10],[191,11,192,11],[191,12,192,12],[191,13,192,13],[191,14,192,14],[191,15,192,15],[191,0,192,0],[191,1,192,1],[191,2,192,2],[191,3,192,3],[191,4,192,4],[191,5,192,5],[191,6,192,6],[191,7,192,7],[191,8,192,8]]}
[null,null,null,null,null,null,null,null,null,null,null,null,null,null,null,null,null,null,null,null,null,null,null,null,null,null,null,null,null,null,null,null,null,null,null,null,null,null,null,null,null,null,null,null,null,null,null,null,null,null,null,null,null,null,null,null,null,"MENTION / INTITULE","PARCOURS",null,null,"DIPLÔME","MENTION / INTITULE","PARCOURS","NUMERO  D'ACCREDITATION","CO-ACCREDITATION","NUMERO RNCP","DATE 1ère PRESENTATION  CFVU","MAQUETTE INITIALE","DATE  DERNIERE PRESENTATION  CFVU","MAQUETTE DERNIERE VERSION","FORMATION  INITIALE OU CONTINUE","CONTRAT  D'APPRENTISSAGE","CONTRAT PRO","STAGE"]
[null,null,null,null,null,null,null,null,null,null,null,null,null,null,null,null,null,null,null,null,null,null,null,null,null,null,null,null,null,null,null,null,null,null,null,null,null,null,null,null,null,null,null,null,null,null,null,null,null,null,null,null,null,null,null,null,null,{"$f":"IF(D7=\"\",\"\",D7)","v":"histoire, civilisations, patrimoine"},{"$f":"IF(D9=\"\",\"\",D9)","v":"management et médiation des patrimoines"},null,null,"master","histoire, civilisations, patrimoine","management et médiation des patrimoines","20160432","-","34096",null,"A venir","-","non concerné","initiale","non","non"]
[]
[null,null,null,"Période d'accréditation : 2022-2025"]
[null,null,"Composante","SHS",null,null,"N°RNCP",{"$f":"BO2","v":"34096"},"N°accréditation",null,{"$f":"BM2","v":"20160432"}]
[]
[null,null,"MASTER","histoire, civilisations, patrimoine",null,"Co-accréditation",null,{"$f":"BN2","v":"-"}]
["Mention qui ne figure pas dans la liste, saisir ici ==>"]
[null,null,"Parcours existant","management et médiation des patrimoines"]
["Création d'un nouveau parcours, saisir ici =>"]
["Modifications du parcours existant, saisir ici =>"]
[]
["Modalités pédagogiques",null,null,{"$f":"BT2","v":"initiale"}]
["contrat pro",null,null,{"$f":"BV2","v":"non"}]
["apprentissage",null,null,{"$f":"BU2","v":"non"}]
[null,"stage obligatoire",null,{"$f":"BW2","v":0}]
["part d'enseignement en langue étrangère (volume horaire)",null,null,null,"heures"]
[]
[]
[null,null,"Maquette initiale",{"$f":"HYPERLINK(BQ2,BQ2)","v":"A venir"}]
[null,null,"Date 1ère présentation en CFVU",{"$f":"BP2","v":0}]
[null,null,"Maquette dernière version",{"$f":"HYPERLINK(BS2,BS2)","v":"non concerné"}]
[null,null,"Date dernière présentation en CFVU",{"$f":"BR2","v":"-"}]
[null,null,"Date prochaine présentation en CFVU"]
[]
[null,null,"Décision CFVU","EN ATTENTE VOTE CFVU"]
[]
[]
["Semestre 7"]
[]
["MAQUETTE",null,null,null,null,null,null,null,null,null,null,null,null,null,null,null,"MCCC"]
["Blocs de connaissances et de compétences (BCC)",null,null,"Unités d'Enseignement (UE)",null,null,"Eléments constitutifs d'UE (ECUE)",null,null,"Indiquer si l'UE ou l'ECUE est\n obligatoire, optionnel ou facultatif\n(menu déroulant)","Volumes horaires prévisionnels (temps étudiants)",null,null,null,null,null,"Poids relatifs du contrôle continu (CC et des examens de fin de semestre (CT), Nature des épreuves, Rattrapage"]
["Intitulés","Crédits","Coefficients","Intitulés","Crédits","Coefficients","Intitulés","Crédits","Coefficients",null,null,null,null,null,null,null,"Session principale ou session 1",null,null,null,null,null,null,null,null,null,null,null,null,"Rattrapage ou session 2"]
[null,null,null,null,null,null,null,null,null,null,"Enseignements",null,null,null,null,null,"Nature des épreuves CC (cocher)",null,null,null,null,"CC\nCoeff. (%)","Nature des épreuves CT (cocher)",null,null,null,null,"CC\nCoeff. (%)","Total session = 100 %","Nature des épreuves de rattrapage (cocher)",null,null,null,null,"Modalité de prise en compte\n\nObligatoire ou Facultatif"]
[null,null,null,null,null,null,null,null,null,null,"CM","TD","TP","Stage-Choisir la durée ici","PROJET","dont enseignements en langue étrangère \n(nombre d'heures)","Ecrit","Pratique (TP)","Oral","Mémoire","Soutenance",null,"Ecrit","Pratique (TP)","Oral","Mémoire","Soutenance",null,null,"Ecrit","Pratique (TP)","Oral","Mémoire","Soutenance"]
[null,null,null,"UE1 : Outils et méthodes",9,1,null,null,null,"Obligatoire",null,null,null,null,null,null,null,null,null,null,null,null,null,null,null,null,null,null,{"$f":"V36+AB36","v":0},null,null,null,null,null,"Obligatoire"]
[null,null,null,null,null,null,"Outils numériques ",2,1,"Obligatoire",null,20,null,null,null,null,"X",null,null,null,null,1,null,null,null,null,null,null,{"$f":"V37+AB37","v":1},"X",null,null,null,null,"Obligatoire"]
[null,null,null,null,null,null,"Aide à la recherche de stage",1,1,"Obligatoire",null,8,null,null,null,null,null,null,"X",null,null,1,null,null,null,null,null,null,1,null,null,"X",null,null,"Obligatoire"]
[null,null,null,null,null,null,"Méthodologie du rapport ou du mémoire",1,1,"Obligatoire",null,4,null,null,null,null,"X",null,null,null,null,1,null,null,null,null,null,null,1,"X",null,null,null,null,"Obligatoire"]
[null,null,null,null,null,null,"Langue : anglais  ou italien",3,1,"Obligatoire",null,20,null,null,null,null,null,null,"X",null,null,1,null,null,null,null,null,null,1,null,null,"X",null,null,"Obligatoire"]
[null,null,null,null,null,null,"Projet Professionnel Personnel",2,1,"Obligatoire",10,null,null,null,null,null,"X",null,"X",null,null,1,null,null,null,null,null,null,1,"X",null,null,null,null,"Obligatoire"]
[null,null,null,"UE2 : Concepts, théories et connaissances fondamentales",6,1,null,null,null,"Obligatoire",null,null,null,null,null,null,null,null,null,null,null,null,null,null,null,null,null,null,0,null,null,null,null,null,"Obligatoire"]
[null,null,null,null,null,null,"Histoire du concept de patrimoine",2,1,"Obligatoire",15,null,null,null,null,null,"X",null,null,null,null,1,null,null,null,null,null,null,1,"X",null,null,null,null,"Obligatoire"]
[null,null,null,null,null,null,"Connaissances juridiques appliquées au patrimoine",2,1,"Obligatoire",18,null,null,null,null,null,"X",null,null,null,null,1,null,null,null,null,null,null,1,"X",null,null,null,null,"Obligatoire"]
[null,null,null,null,null,null,"Histoire des musées et des institutions patrimoniales",2,1,"Obligatoire",12,null,null,null,null,null,"X",null,null,null,null,1,null,null,null,null,null,null,1,"X",null,null,null,null,"Obligatoire"]
[null,null,null,"UE3 : Diversité des patrimoines",6,1,null,null,null,"Obligatoire",null,null,null,null,null,null,null,null,null,null,null,null,null,null,null,null,null,null,0,null,null,null,null,null,"Obligatoire"]
[null,null,null,null,null,null,"Patrimoines traditionnels (bâti, industriel, religieux etc.)",2,1,"Obligatoire",24,12,null,null,null,null,"X",null,"X",null,null,1,null,null,null,null,null,null,1,"X",null,"X",null,null,"Obligatoire"]
[null,null,null,null,null,null,"Patrimoines naturels (vivants, géologique, paléontologique)/ gestion de projet ",2,1,"Obligatoire",8,12,null,null,null,null,"X",null,null,null,null,1,null,null,null,null,null,null,1,"X",null,null,null,null,"Obligatoire"]
[null,null,null,null,null,null,"Nouveaux patrimoines (immatériel, colonial)",2,1,"Obligatoire",10,12,null,null,null,null,"X",null,"X",null,null,1,null,null,null,null,null,null,1,"X",null,"X",null,null,"Obligatoire"]
[null,null,null,"UE4 : Etablissements culturels et services patrimoniaux",3,1,null,null,null,"Obligatoire",null,null,null,null,null,null,null,null,null,null,null,null,null,null,null,null,null,null,0,null,null,null,null,null,"Obligatoire"]
[null,null,null,null,null,null,"Archives, musées, DRAC, cité design, memorial, Parc Naturel, association etc. (Les interventions feront prioritairement dans les structures)",3,1,"Obligatoire",30,null,null,null,null,null,"X",null,null,null,null,1,null,null,null,null,null,null,1,"X",null,null,null,null,"Obligatoire"]
[null,null,null,"UE5 : Compétences et connaissances professionnelles",6,1,null,null,null,"Obligatoire",null,null,null,null,null,null,null,null,null,null,null,null,null,null,null,null,null,null,0,null,null,null,null,null,"Obligatoire"]
[null,null,null,null,null,null,"Connaissances des publics (publics jeunesse, publics empêchés, etc.",2,1,"Obligatoire",12,null,null,null,null,null,"X",null,null,null,null,1,null,null,null,null,null,null,1,"X",null,null,null,null,"Obligatoire"]
[null,null,null,null,null,null,"Expologie et muséographie",2,1,"Obligatoire",12,12,null,null,null,null,"X",null,null,null,null,1,null,null,null,null,null,null,1,"X",null,null,null,null,"Obligatoire"]
[null,null,null,null,null,null,"Enjeux et outils de la médiation",2,1,"Obligatoire",12,null,null,null,null,null,"X",null,null,null,null,1,null,null,null,null,null,null,1,"X",null,null,null,null,"Obligatoire"]
[null,null,null,null,null,null,null,null,null,null,null,null,null,null,null,null,null,null,null,null,null,null,null,null,null,null,null,null,0,null,null,null,null,null,"Obligatoire"]
[null,null,null,null,null,null,null,null,null,null,null,{"$f":"SUM(L37:L55)","v":100},null,null,null,null,null,null,null,null,null,null,null,null,null,null,null,null,0,null,null,null,null,null,"Obligatoire"]
[null,null,null,null,null,null,null,null,null,null,null,null,null,null,null,null,null,null,null,null,null,null,null,null,null,null,null,null,0,null,null,null,null,null,"Obligatoire"]
[null,null,null,null,null,null,null,null,null,null,null,null,null,null,null,null,null,null,null,null,null,null,null,null,null,null,null,null,0,null,null,null,null,null,"Obligatoire"]
[null,null,null,null,null,null,null,null,null,null,null,null,null,null,null,null,null,null,null,null,null,null,null,null,null,null,null,null,0,null,null,null,null,null,"Obligatoire"]
[null,null,null,null,null,null,null,null,null,null,null,null,null,null,null,null,null,null,null,null,null,null,null,null,null,null,null,null,0,null,null,null,null,null,"Obligatoire"]
[null,null,null,null,null,null,null,null,null,null,null,null,null,null,null,null,null,null,null,null,null,null,null,null,null,null,null,null,0,null,null,null,null,null,"Obligatoire"]
[null,null,null,null,null,null,null,null,null,null,null,null,null,null,null,null,null,null,null,null,null,null,null,null,null,null,null,null,0,null,null,null,null,null,"Obligatoire"]
[null,null,null,null,null,null,null,null,null,null,null,null,null,null,null,null,null,null,null,null,null,null,null,null,null,null,null,null,0,null,null,null,null,null,"Obligatoire"]
[null,null,null,null,null,null,null,null,null,null,null,null,null,null,null,null,null,null,null,null,null,null,null,null,null,null,null,null,0,null,null,null,null,null,"Obligatoire"]
["Total par étudiant",null,"-","-",30,"-","-",30,"-","-",{"$f":"SUM(K36:K65)","v":163},{"$f":"SUM(L36:L65)","v":200}]
[]
[]
[]
[]
["ZONE DE TEXTE / COMMENTAIRES : (ALT+ENTREE pour aller à la ligne)\n\n"]
[]
[]
[]
[]
[]
[]
[]
[]
[]
[]
[]
[]
[]
[]
[]
[]
[]
[]
["Semestre 8"]
[]
["MAQUETTE",null,null,null,null,null,null,null,null,null,null,null,null,null,null,null,"MCCC"]
["Blocs de connaissances et de compétences (BCC)",null,null,"Unités d'Enseignement (UE)",null,null,"Eléments constitutifs d'UE (ECUE)",null,null,"Indiquer si l'UE ou l'ECUE est\n obligatoire, optionnel ou facultatif\n(menu déroulant)","Volumes horaires prévisionnels (temps étudiants)",null,null,null,null,null,"Poids relatifs du contrôle continu (CC et des examens de fin de semestre (CT), Nature des épreuves, Rattrapage"]
["Intitulés","Crédits","Coefficients","Intitulés","Crédits","Coefficients","Intitulés","Crédits","Coefficients",null,null,null,null,null,null,null,"Session principale ou session 1",null,null,null,null,null,null,null,null,null,null,null,null,"Rattrapage ou session 2"]
[null,null,null,null,null,null,null,null,null,null,"Enseignements",null,null,null,null,null,"Nature des épreuves CC (cocher)",null,null,null,null,"CC\nCoeff. (%)","Nature des épreuves CT (cocher)",null,null,null,null,"CC\nCoeff. (%)","Total session = 100 %","Nature des épreuves de rattrapage (cocher)",null,null,null,null,"Modalité de prise en compte\n\nObligatoire ou Facultatif"]
[null,null,null,null,null,null,null,null,null,null,"CM","TD","TP","Stage-Choisir la durée ici","PROJET","dont enseignements en langue étrangère \n(nombre d'heures)","Ecrit","Pratique (TP)","Oral","Mémoire","Soutenance",null,"Ecrit","Pratique (TP)","Oral","Mémoire","Soutenance",null,null,"Ecrit","Pratique (TP)","Oral","Mémoire","Soutenance"]
[null,null,null,"UE1 Stage de Recherche",30,1,null,null,null,null,null,null,null,null,null,null,null,null,null,null,null,null,null,null,null,null,null,null,{"$f":"V97+AB97","v":0},null,null,null,null,null,"Obligatoire"]
[null,null,null,null,null,null,"Stage de 3 mois à 4 mois ou mémoire de recherche (France et étranger)",30,1,"Obligatoire",null,null,null,"3 à 4 mois",null,null,null,null,null,"X",null,1,null,null,null,null,null,null,{"$f":"V98+AB98","v":1},null,null,null,"X",null,"Obligatoire"]
[null,null,null,null,null,null,null,null,null,null,null,null,null,null,null,null,null,null,null,null,null,null,null,null,null,null,null,null,0,null,null,null,null,null,"Obligatoire"]
[null,null,null,null,null,null,null,null,null,null,null,null,null,null,null,null,null,null,null,null,null,null,null,null,null,null,null,null,0,null,null,null,null,null,"Obligatoire"]
[null,null,null,null,null,null,null,null,null,null,null,null,null,null,null,null,null,null,null,null,null,null,null,null,null,null,null,null,0,null,null,null,null,null,"Obligatoire"]
[null,null,null,null,null,null,null,null,null,null,null,null,null,null,null,null,null,null,null,null,null,null,null,null,null,null,null,null,0,null,null,null,null,null,"Obligatoire"]
[null,null,null,null,null,null,null,null,null,null,null,null,null,null,null,null,null,null,null,null,null,null,null,null,null,null,null,null,0,null,null,null,null,null,"Obligatoire"]
[null,null,null,null,null,null,null,null,null,null,null,null,null,null,null,null,null,null,null,null,null,null,null,null,null,null,null,null,0,null,null,null,null,null,"Obligatoire"]
[null,null,null,null,null,null,null,null,null,null,null,null,null,null,null,null,null,null,null,null,null,null,null,null,null,null,null,null,0,null,null,null,null,null,"Obligatoire"]
[null,null,null,null,null,null,null,null,null,null,null,null,null,null,null,null,null,null,null,null,null,null,null,null,null,null,null,null,0,null,null,null,null,null,"Obligatoire"]
[null,null,null,null,null,null,null,null,null,null,null,null,null,null,null,null,null,null,null,null,null,null,null,null,null,null,null,null,0,null,null,null,null,null,"Obligatoire"]
[null,null,null,null,null,null,null,null,null,null,null,null,null,null,null,null,null,null,null,null,null,null,null,null,null,null,null,null,0,null,null,null,null,null,"Obligatoire"]
[null,null,null,null,null,null,null,null,null,null,null,null,null,null,null,null,null,null,null,null,null,null,null,null,null,null,null,null,0,null,null,null,null,null,"Obligatoire"]
[null,null,null,null,null,null,null,null,null,null,null,null,null,null,null,null,null,null,null,null,null,null,null,null,null,null,null,null,0,null,null,null,null,null,"Obligatoire"]
[null,null,null,null,null,null,null,null,null,null,null,null,null,null,null,null,null,null,null,null,null,null,null,null,null,null,null,null,0,null,null,null,null,null,"Obligatoire"]
[null,null,null,null,null,null,null,null,null,null,null,null,null,null,null,null,null,null,null,null,null,null,null,null,null,null,null,null,0,null,null,null,null,null,"Obligatoire"]
[null,null,null,null,null,null,null,null,null,null,null,null,null,null,null,null,null,null,null,null,null,null,null,null,null,null,null,null,0,null,null,null,null,null,"Obligatoire"]
[null,null,null,null,null,null,null,null,null,null,null,null,null,null,null,null,null,null,null,null,null,null,null,null,null,null,null,null,0,null,null,null,null,null,"Obligatoire"]
[null,null,null,null,null,null,null,null,null,null,null,null,null,null,null,null,null,null,null,null,null,null,null,null,null,null,null,null,0,null,null,null,null,null,"Obligatoire"]
[null,null,null,null,null,null,null,null,null,null,null,null,null,null,null,null,null,null,null,null,null,null,null,null,null,null,null,null,0,null,null,null,null,null,"Obligatoire"]
[null,null,null,null,null,null,null,null,null,null,null,null,null,null,null,null,null,null,null,null,null,null,null,null,null,null,null,null,0,null,null,null,null,null,"Obligatoire"]
[null,null,null,null,null,null,null,null,null,null,null,null,null,null,null,null,null,null,null,null,null,null,null,null,null,null,null,null,0,null,null,null,null,null,"Obligatoire"]
[null,null,null,null,null,null,null,null,null,null,null,null,null,null,null,null,null,null,null,null,null,null,null,null,null,null,null,null,0,null,null,null,null,null,"Obligatoire"]
[null,null,null,null,null,null,null,null,null,null,null,null,null,null,null,null,null,null,null,null,null,null,null,null,null,null,null,null,0,null,null,null,null,null,"Obligatoire"]
[null,null,null,null,null,null,null,null,null,null,null,null,null,null,null,null,null,null,null,null,null,null,null,null,null,null,null,null,0,null,null,null,null,null,"Obligatoire"]
[null,null,null,null,null,null,null,null,null,null,null,null,null,null,null,null,null,null,null,null,null,null,null,null,null,null,null,null,0,null,null,null,null,null,"Obligatoire"]
[null,null,null,null,null,null,null,null,null,null,null,null,null,null,null,null,null,null,null,null,null,null,null,null,null,null,null,null,0,null,null,null,null,null,"Obligatoire"]
[null,null,null,null,null,null,null,null,null,null,null,null,null,null,null,null,null,null,null,null,null,null,null,null,null,null,null,null,0,null,null,null,null,null,"Obligatoire"]
[null,null,null,null,null,null,null,null,null,null,null,null,null,null,null,null,null,null,null,null,null,null,null,null,null,null,null,null,0,null,null,null,null,null,"Obligatoire"]
[null,null,null,null,null,null,null,null,null,null,null,null,null,null,null,null,null,null,null,null,null,null,null,null,null,null,null,null,0,null,null,null,null,null,"Obligatoire"]
["Total par étudiant",null,"-","-",null,"-","-",null,"-","-"]
[]
[]
[]
[]
["ZONE DE TEXTE / COMMENTAIRES : (ALT+ENTREE pour aller à la ligne)\n\n"]
[]
[]
[]
[]
[]
[]
[]
[]
[]
[]
[]
[]
[]
[]
[]
[]
[]
[]
["Semestre 9"]
[]
["MAQUETTE",null,null,null,null,null,null,null,null,null,null,null,null,null,null,null,"MCCC"]
["Blocs de connaissances et de compétences (BCC)",null,null,"Unités d'Enseignement (UE)",null,null,"Eléments constitutifs d'UE (ECUE)",null,null,"Indiquer si l'UE ou l'ECUE est\n obligatoire, optionnel ou facultatif\n(menu déroulant)","Volumes horaires prévisionnels (temps étudiants)",null,null,null,null,null,"Poids relatifs du contrôle continu (CC et des examens de fin de semestre (CT), Nature des épreuves, Rattrapage"]
["Intitulés","Crédits","Coefficients","Intitulés","Crédits","Coefficients","Intitulés","Crédits","Coefficients",null,null,null,null,null,null,null,"Session principale ou session 1",null,null,null,null,null,null,null,null,null,null,null,null,"Rattrapage ou session 2"]
[null,null,null,null,null,null,null,null,null,null,"Enseignements",null,null,null,null,null,"Nature des épreuves CC (cocher)",null,null,null,null,"CC\nCoeff. (%)","Nature des épreuves CT (cocher)",null,null,null,null,"CC\nCoeff. (%)","Total session = 100 %","Nature des épreuves de rattrapage (cocher)",null,null,null,null,"Modalité de prise en compte\n\nObligatoire ou Facultatif"]
[null,null,null,null,null,null,null,null,null,null,"CM","TD","TP","stage (mois)","PROJET","dont enseignements en langue étrangère \n(nombre d'heures)","Ecrit","Pratique (TP)","Oral","Mémoire","Soutenance",null,"Ecrit","Pratique (TP)","Oral","Mémoire","Soutenance",null,null,"Ecrit","Pratique (TP)","Oral","Mémoire","Soutenance"]
[null,null,null,"UE1 : Outils et méthodes (tronc commun)",9,1,null,null,null,"Obligatoire",null,null,null,null,null,null,null,null,null,null,null,null,null,null,null,null,null,null,{"$f":"V158+AB158","v":0},null,null,null,null,null,"Obligatoire"]
[null,null,null,null,null,null,"SIG (QGIS ….)",3,1,"Obligatoire",null,28,null,null,null,null,"X",null,null,null,null,1,null,null,null,null,null,null,{"$f":"V159+AB159","v":1},"X",null,null,null,null,"Obligatoire"]
[null,null,null,null,null,null,"Aide à la recherche de stage",1,1,"Obligatoire",null,8,null,null,null,null,"X",null,null,null,null,1,null,null,null,null,null,null,{"$f":"V160+AB160","v":1},"X",null,null,null,null,"Obligatoire"]
[null,null,null,null,null,null,"Langue : Anglais ou Italien",3,1,"Obligatoire",null,20,null,null,null,null,null,null,"X",null,null,1,null,null,null,null,null,null,1,null,null,"X",null,null,"Obligatoire"]
[null,null,null,null,null,null,"Projet Professionnel Personnel",2,1,"Obligatoire",10,null,null,null,null,null,null,null,"X",null,null,1,null,null,null,null,null,null,1,null,null,"X",null,null,"Obligatoire"]
[null,null,null,"UE2 : Patrimoines naturels (choisir une option) ",8,1,null,null,null,"Obligatoire",null,null,null,null,null,null,null,null,null,null,null,null,null,null,null,null,null,null,0,null,null,null,null,null,"Obligatoire"]
[null,null,null,"Option Patrimoines naturels 1",8,null,null,null,null,"Optionnel",null,null,null,null,null,null,null,null,null,null,null,null,null,null,null,null,null,null,0,null,null,null,null,null,"Obligatoire"]
[null,null,null,null,null,null,"Patrimoines des domaines fluviaux et lacustres",2,1,"Obligatoire",10,12,null,null,null,null,"X",null,null,null,null,1,null,null,null,null,null,null,1,"X",null,null,null,null,"Obligatoire"]
[null,null,null,null,null,null,"Patrimoine géoarchéologique et historique ",3,1,"Obligatoire",12,18,null,null,null,null,"X",null,null,null,null,1,null,null,null,null,null,null,{"$f":"V166+AB166","v":1},"X",null,null,null,null,"Obligatoire"]
[null,null,null,null,null,null,"Patrimoines géologiques et  paléontologiques ",3,1,"Obligatoire",8,20,null,null,null,null,"X",null,null,null,null,1,null,null,null,null,null,null,1,"X",null,null,null,null,"Obligatoire"]
[null,null,null,"Option Patrimoines naturels 2",8,null,null,null,null,"Optionnel"]
[null,null,null,null,null,null,"Patrimonialisation des zones humides",3,1,"Obligatoire",8,12,null,null,null,null,"X",null,null,null,null,1,null,null,null,null,null,null,1,"X",null,null,null,null,"Obligatoire"]
[null,null,null,null,null,null,"Patrimoines batis et paysages culturels /gestion de projet ",3,1,"Obligatoire",10,18,null,null,null,null,"X",null,null,null,null,1,null,null,null,null,null,null,{"$f":"V170+AB170","v":1},"X",null,null,null,null,"Obligatoire"]
[null,null,null,null,null,null,"Cultural Landscapes et Anthropocène",2,1,"Obligatoire",8,null,null,null,null,null,"X",null,null,null,null,1,null,null,null,null,null,null,{"$f":"V171+AB171","v":1},"X",null,null,null,null,"Obligatoire"]
[null,null,null,"UE3 : Outils numériques (choisir une option) ",8,1,null,null,null,"Obligatoire",null,null,null,null,null,null,null,null,null,null,null,null,null,null,null,null,null,null,0,null,null,null,null,null,"Obligatoire"]
[null,null,null,"Option Outils numériques 1 ",8,null,null,null,null,"Optionnel",null,null,null,null,null,null,null,null,null,null,null,null,null,null,null,null,null,null,0,null,null,null,null,null,"Obligatoire"]
[null,null,null,null,null,null,"Nouvelles pratiques numériques pour les patrimoines ",2,1,"Obligatoire",null,20,null,null,null,null,"X",null,null,null,null,1,null,null,null,null,null,null,1,"X",null,null,null,null,"Obligatoire"]
[null,null,null,null,null,null,"3D (modélisation , Sfm, jeux vidéo et réalité virtuelle) ",2,1,"Obligatoire",null,18,null,null,null,null,null,null,null,null,null,null,null,null,null,null,null,null,null,null,null,null,null,null,"Obligatoire"]
[null,null,null,null,null,null,"Cartographie et sémiologie ",2,1,"Obligatoire",null,14,null,null,null,null,"X",null,null,null,null,1,null,null,null,null,null,null,1,"X",null,null,null,null,"Obligatoire"]
[null,null,null,null,null,null,"Données de règlementation (stockage, droit des données , licence…) ",2,1,"Obligatoire",6,null,null,null,null,null,"X",null,null,null,null,1,null,null,null,null,null,null,{"$f":"V177+AB177","v":1},"X",null,null,null,null,"Obligatoire"]
[null,null,null,"Option Outils numériques 2 ",8,null,null,null,null,"Optionnel",null,null,null,null,null,null,null,null,null,null,null,null,null,null,null,null,null,null,0,null,null,null,null,null,"Obligatoire"]
[null,null,null,null,null,null,"PAO, DAO, Print",2,1,"Obligatoire",null,12,null,null,null,null,"X",null,null,null,null,1,null,null,null,null,null,null,1,"X",null,null,null,null,"Obligatoire"]
[null,null,null,null,null,null,"Communiquer sur le patrimoine (outils Web réseaux sociaux, vidéo, audios …)",2,1,"Obligatoire",null,11,null,null,null,null,"X",null,null,null,null,1,null,null,null,null,null,null,1,"X",null,null,null,null,"Obligatoire"]
[null,null,null,null,null,null,"Nouveaux outils interactifs et muséographie (vidéos, bornes, tablettes, réalité augmentée, application smartphone …)",2,1,"Obligatoire",null,24,null,null,null,null,"X",null,null,null,null,1,null,null,null,null,null,null,1,"X",null,null,null,null,"Obligatoire"]
[null,null,null,null,null,null,"Numériser le patrimoine",1,1,"Obligatoire",4,null,null,null,null,null,"X",null,null,null,null,1,null,null,null,null,null,null,1,"X",null,null,null,null,"Obligatoire"]
[null,null,null,null,null,null,"Fabriquer une enquête",1,1,"Obligatoire",null,6,null,null,null,null,"X",null,null,null,null,1,null,null,null,null,null,null,1,"X",null,null,null,null,"Obligatoire"]
[null,null,null,"UE4 : Etablissements culturels et services patrimoniaux",2,1,null,null,null,"Obligatoire",null,null,null,null,null,null,null,null,null,null,null,null,null,null,null,null,null,null,0,null,null,null,null,null,"Obligatoire"]
[null,null,null,null,null,null,"Les gestionnaires du patrimoine (Archives, musées, muséums, services de l'Etat, associations, fondations …)",1,1,"Obligatoire",9,6,null,null,null,null,"X",null,null,null,null,1,null,null,null,null,null,null,1,"X",null,null,null,null,"Obligatoire"]
[null,null,null,null,null,null,"Séminaire UJM/LYON2/ENTPE : Anthropocène, Héritages, Patrimoine ",1,1,"Obligatoire",10,null,null,null,null,null,null,null,"X",null,null,1,null,null,null,null,null,null,1,null,null,"X",null,null,"Obligatoire"]
[null,null,null,"UE5 : Compétences et connaissances professionnelles",3,1,null,3,null,"Obligatoire",null,null,null,null,null,null,null,null,null,null,null,null,null,null,null,null,null,null,0,null,null,null,null,null,"Obligatoire"]
[null,null,null,null,null,null,"Connaissances des publics",1,1,"Obligatoire",10,null,null,null,null,null,"X",null,"X",null,null,1,null,null,null,null,null,null,1,"X",null,"X",null,null,"Obligatoire"]
[null,null,null,null,null,null,"Expologie et muséographie",1,1,"Obligatoire",10,null,null,null,null,null,"X",null,"X",null,null,1,null,null,null,null,null,null,1,"X",null,"X",null,null,"Obligatoire"]
[null,null,null,null,null,null,"Médiations : enjeux et outils",1,1,"Obligatoire",10,null,null,null,null,null,"X",null,"X",null,null,1,null,null,null,null,null,null,1,"X",null,"X",null,null,"Obligatoire"]
[null,null,null,null,null,null,null,null,null,null,null,null,null,null,null,null,null,null,null,null,null,null,null,null,null,null,null,null,0,null,null,null,null,null,"Obligatoire"]
["Total par étudiant",null,"-","-",null,"-","-",null,"-","-",{"$f":"SUM(K158:K191)","v":125},247]
[]
[]
["ZONE DE TEXTE / COMMENTAIRES : (ALT+ENTREE pour aller à la ligne)\n\n"]
[]
[]
[]
[]
[]
[]
[]
[]
[]
[]
[]
[]
[]
[]
[]
[]
[]
[]
["Semestre 10"]
[]
["MAQUETTE",null,null,null,null,null,null,null,null,null,null,null,null,null,null,null,"MCCC"]
["Blocs de connaissances et de compétences (BCC)",null,null,"Unités d'Enseignement (UE)",null,null,"Eléments constitutifs d'UE (ECUE)",null,null,"Indiquer si l'UE ou l'ECUE est\n obligatoire, optionnel ou facultatif\n(menu déroulant)","Volumes horaires prévisionnels (temps étudiants)",null,null,null,null,null,"Poids relatifs du contrôle continu (CC et des examens de fin de semestre (CT), Nature des épreuves, Rattrapage"]
["Intitulés","Crédits","Coefficients","Intitulés","Crédits","Coefficients","Intitulés","Crédits","Coefficients",null,null,null,null,null,null,null,"Session principale ou session 1",null,null,null,null,null,null,null,null,null,null,null,null,"Rattrapage ou session 2"]
[null,null,null,null,null,null,null,null,null,null,"Enseignements",null,null,null,null,null,"Nature des épreuves CC (cocher)",null,null,null,null,"CC\nCoeff. (%)","Nature des épreuves CT (cocher)",null,null,null,null,"CC\nCoeff. (%)","Total session = 100 %","Nature des épreuves de rattrapage (cocher)",null,null,null,null,"Modalité de prise en compte\n\nObligatoire ou Facultatif"]
[null,null,null,null,null,null,null,null,null,null,"CM","TD","TP","Stage-Choisir la durée ici","PROJET","dont enseignements en langue étrangère \n(nombre d'heures)","Ecrit","Pratique (TP)","Oral","Mémoire","Soutenance",null,"Ecrit","Pratique (TP)","Oral","Mémoire","Soutenance",null,null,"Ecrit","Pratique (TP)","Oral","Mémoire","Soutenance"]
[null,null,null,"UE1 Stage professionnel ou stage recherche",30,1,null,null,null,"Obligatoire",null,null,null,null,null,null,null,null,null,null,null,null,null,null,null,null,null,null,{"$f":"V221+AB221","v":0},null,null,null,null,null,"Obligatoire"]
[null,null,null,null,null,null,"Stage ou mémoire de recherche  (heures par étudiant)",30,1,"Obligatoire",null,3,null,"4 à 6 mois",null,null,null,null,null,"X","X",1,null,null,null,null,null,null,{"$f":"V222+AB222","v":1},null,null,null,null,null,"Obligatoire"]
[null,null,null,null,null,null,null,null,null,"Obligatoire",null,null,null,null,null,null,null,null,null,null,null,null,null,null,null,null,null,null,0,null,null,null,null,null,"Obligatoire"]
[null,null,null,null,null,null,null,null,null,"Obligatoire",null,null,null,null,null,null,null,null,null,null,null,null,null,null,null,null,null,null,0,null,null,null,null,null,"Obligatoire"]
[null,null,null,null,null,null,null,null,null,"Obligatoire",null,null,null,null,null,null,null,null,null,null,null,null,null,null,null,null,null,null,0,null,null,null,null,null,"Obligatoire"]
[null,null,null,null,null,null,null,null,null,"Obligatoire",null,null,null,null,null,null,null,null,null,null,null,null,null,null,null,null,null,null,0,null,null,null,null,null,"Obligatoire"]
[null,null,null,null,null,null,null,null,null,"Obligatoire",null,null,null,null,null,null,null,null,null,null,null,null,null,null,null,null,null,null,0,null,null,null,null,null,"Obligatoire"]
[null,null,null,null,null,null,null,null,null,"Obligatoire",null,null,null,null,null,null,null,null,null,null,null,null,null,null,null,null,null,null,0,null,null,null,null,null,"Obligatoire"]
[null,null,null,null,null,null,null,null,null,"Obligatoire",null,null,null,null,null,null,null,null,null,null,null,null,null,null,null,null,null,null,0,null,null,null,null,null,"Obligatoire"]
[null,null,null,null,null,null,null,null,null,"Obligatoire",null,null,null,null,null,null,null,null,null,null,null,null,null,null,null,null,null,null,0,null,null,null,null,null,"Obligatoire"]
[null,null,null,null,null,null,null,null,null,"Obligatoire",null,null,null,null,null,null,null,null,null,null,null,null,null,null,null,null,null,null,0,null,null,null,null,null,"Obligatoire"]
[null,null,null,null,null,null,null,null,null,"Obligatoire",null,null,null,null,null,null,null,null,null,null,null,null,null,null,null,null,null,null,0,null,null,null,null,null,"Obligatoire"]
[null,null,null,null,null,null,null,null,null,"Obligatoire",null,null,null,null,null,null,null,null,null,null,null,null,null,null,null,null,null,null,0,null,null,null,null,null,"Obligatoire"]
[null,null,null,null,null,null,null,null,null,"Obligatoire",null,null,null,null,null,null,null,null,null,null,null,null,null,null,null,null,null,null,0,null,null,null,null,null,"Obligatoire"]
[null,null,null,null,null,null,null,null,null,"Obligatoire",null,null,null,null,null,null,null,null,null,null,null,null,null,null,null,null,null,null,0,null,null,null,null,null,"Obligatoire"]
[null,null,null,null,null,null,null,null,null,"Obligatoire",null,null,null,null,null,null,null,null,null,null,null,null,null,null,null,null,null,null,0,null,null,null,null,null,"Obligatoire"]
[null,null,null,null,null,null,null,null,null,"Obligatoire",null,null,null,null,null,null,null,null,null,null,null,null,null,null,null,null,null,null,0,null,null,null,null,null,"Obligatoire"]
[null,null,null,null,null,null,null,null,null,"Obligatoire",null,null,null,null,null,null,null,null,null,null,null,null,null,null,null,null,null,null,0,null,null,null,null,null,"Obligatoire"]
[null,null,null,null,null,null,null,null,null,"Obligatoire",null,null,null,null,null,null,null,null,null,null,null,null,null,null,null,null,null,null,0,null,null,null,null,null,"Obligatoire"]
[null,null,null,null,null,null,null,null,null,"Obligatoire",null,null,null,null,null,null,null,null,null,null,null,null,null,null,null,null,null,null,0,null,null,null,null,null,"Obligatoire"]
[null,null,null,null,null,null,null,null,null,"Obligatoire",null,null,null,null,null,null,null,null,null,null,null,null,null,null,null,null,null,null,0,null,null,null,null,null,"Obligatoire"]
[null,null,null,null,null,null,null,null,null,"Obligatoire",null,null,null,null,null,null,null,null,null,null,null,null,null,null,null,null,null,null,0,null,null,null,null,null,"Obligatoire"]
[null,null,null,null,null,null,null,null,null,"Obligatoire",null,null,null,null,null,null,null,null,null,null,null,null,null,null,null,null,null,null,0,null,null,null,null,null,"Obligatoire"]
[null,null,null,null,null,null,null,null,null,"Obligatoire",null,null,null,null,null,null,null,null,null,null,null,null,null,null,null,null,null,null,0,null,null,null,null,null,"Obligatoire"]
[null,null,null,null,null,null,null,null,null,"Obligatoire",null,null,null,null,null,null,null,null,null,null,null,null,null,null,null,null,null,null,0,null,null,null,null,null,"Obligatoire"]
[null,null,null,null,null,null,null,null,null,"Obligatoire",null,null,null,null,null,null,null,null,null,null,null,null,null,null,null,null,null,null,0,null,null,null,null,null,"Obligatoire"]
[null,null,null,null,null,null,null,null,null,"Obligatoire",null,null,null,null,null,null,null,null,null,null,null,null,null,null,null,null,null,null,0,null,null,null,null,null,"Obligatoire"]
[null,null,null,null,null,null,null,null,null,"Obligatoire",null,null,null,null,null,null,null,null,null,null,null,null,null,null,null,null,null,null,0,null,null,null,null,null,"Obligatoire"]
[null,null,null,null,null,null,null,null,null,"Obligatoire",null,null,null,null,null,null,null,null,null,null,null,null,null,null,null,null,null,null,0,null,null,null,null,null,"Obligatoire"]
[null,null,null,null,null,null,null,null,null,"Obligatoire",null,null,null,null,null,null,null,null,null,null,null,null,null,null,null,null,null,null,0,null,null,null,null,null,"Obligatoire"]
["Total par étudiant",null,"-","-",null,"-","-",null,"-","-",null,null,null,"4 à 6 mois"]
[]
[]
[]
[]
["ZONE DE TEXTE / COMMENTAIRES : (ALT+ENTREE pour aller à la ligne)\n\n"]

{"sheet":"ANNEXE FINANCIERE","index":2,"n_rows":348,"n_cols":17,"rows_kept":348,"cut":false,"hidden":false,"merged":[[274,9,275,9],[274,10,275,10],[274,11,275,11],[180,2,180,4],[242,13,243,13],[179,9,180,9],[179,10,180,10],[179,11,180,11],[179,12,180,12],[179,13,180,13],[272,5,272,14],[242,14,243,14],[274,12,275,12],[274,13,275,13],[273,8,273,10],[273,11,273,13],[274,0,276,0],[274,1,276,1],[274,5,275,5],[274,6,275,6],[274,7,275,7],[273,2,274,4],[273,5,273,7],[275,2,275,4],[274,8,275,8],[273,14,276,14],[272,0,272,4],[177,0,177,4],[177,5,177,14],[178,2,179,4],[178,5,178,7],[178,8,178,10],[178,11,178,13],[178,14,181,14],[179,0,181,0],[179,1,181,1],[179,5,180,5],[179,6,180,6],[179,7,180,7],[179,8,180,8],[96,9,97,9],[96,10,97,10],[96,11,97,11],[96,12,97,12],[96,13,97,13],[97,2,97,4],[96,0,98,0],[96,1,98,1],[96,5,97,5],[96,6,97,6],[96,7,97,7],[96,8,97,8],[12,12,13,12],[12,13,13,13],[13,2,13,4],[94,0,94,4],[94,5,94,14],[95,2,96,4],[95,5,95,7],[95,8,95,10],[95,11,95,13],[95,14,98,14],[12,6,13,6],[12,7,13,7],[12,8,13,8],[12,9,13,9],[12,10,13,10],[12,11,13,11],[10,0,10,4],[10,5,10,14],[11,2,12,4],[11,5,11,7],[11,8,11,10],[11,11,11,13],[11,14,14,14],[12,0,14,0],[12,1,14,1],[12,5,13,5]]}
[]
[]
[]
[]
[{"$f":"'MAQUETTE VIERGE'!D5","v":"SHS"}]
[{"$f":"'MAQUETTE VIERGE'!D7","v":"histoire, civilisations, patrimoine"}]
[{"$f":"'MAQUETTE VIERGE'!D9","v":"management et médiation des patrimoines"}]
[null,null,"CELLULES A REMPLIR"]
[{"$f":"'MAQUETTE VIERGE'!A29","v":"Semestre 7"}]
[]
["MAQUETTE",null,null,null,null,"Conversion en heures équivalent TD"]
["Unités d'Enseignement (UE)","Eléments constitutifs d'UE (ECUE)","Volumes horaires prévisionnels\n (temps étudiants)",null,null,"Heures prévisionnelles CM",null,null,"Heures prévisionnelles TD",null,null,"Heures prévisionnelles TP",null,null,"TOTAL"]
["Intitulés","Intitulés",null,null,null,"Nombre de groupes de CM","Heures d'enseignement CM","Heures d'enseignement équivalent TD","Nombre de groupes de TD","Heures d'enseignement TD","Heures d'enseignement équivalent TD","Nombre de groupes de TP","Heures d'enseignement TP","Heures d'enseignement équivalent TD"]
[null,null,"Enseignements"]
[null,null,"CM","TD","TP",null,"= nb groupe CM x heures CM maquette","= heures d'enseignement CM * 1,5",null,"= nb groupe TD x heures TD maquette","= heures d'enseignement TD * 1",null,"= nb groupe TD x heures TD maquette","= heures d'enseignement TD * 0,87 (1h TP équivaut en moyenne à 0,87h eqTD à l'UJM)"]
[{"$f":"'MAQUETTE VIERGE'!D36","v":"UE1 : Outils et méthodes"},{"$f":"'MAQUETTE VIERGE'!G36","v":0},{"$f":"'MAQUETTE VIERGE'!K36","v":0},{"$f":"'MAQUETTE VIERGE'!L36","v":0},{"$f":"'MAQUETTE VIERGE'!M36","v":0},null,{"$f":"F16*C16","v":0},{"$f":"G16*1.5","v":0},null,{"$f":"I16*D16","v":0},{"$f":"J16*1","v":0},null,{"$f":"L16*E16","v":0},{"$f":"M16*0.87","v":0},{"$f":"H16+K16+N16","v":0}]
[{"$f":"'MAQUETTE VIERGE'!D37","v":0},{"$f":"'MAQUETTE VIERGE'!G37","v":"Outils numériques "},{"$f":"'MAQUETTE VIERGE'!K37","v":0},{"$f":"'MAQUETTE VIERGE'!L37","v":20},{"$f":"'MAQUETTE VIERGE'!M37","v":0},null,{"$f":"F17*C17","v":0},{"$f":"G17*1.5","v":0},1,{"$f":"I17*D17","v":20},{"$f":"J17*1","v":20},null,{"$f":"L17*E17","v":0},{"$f":"M17*0.87","v":0},{"$f":"H17+K17+N17","v":20}]
[{"$f":"'MAQUETTE VIERGE'!D38","v":0},{"$f":"'MAQUETTE VIERGE'!G38","v":"Aide à la recherche de stage"},{"$f":"'MAQUETTE VIERGE'!K38","v":0},{"$f":"'MAQUETTE VIERGE'!L38","v":8},{"$f":"'MAQUETTE VIERGE'!M38","v":0},null,0,0,1,8,8,null,0,0,8]
[{"$f":"'MAQUETTE VIERGE'!D39","v":0},{"$f":"'MAQUETTE VIERGE'!G39","v":"Méthodologie du rapport ou du mémoire"},{"$f":"'MAQUETTE VIERGE'!K39","v":0},{"$f":"'MAQUETTE VIERGE'!L39","v":4},{"$f":"'MAQUETTE VIERGE'!M39","v":0},null,0,0,1,4,4,null,0,0,4]
[{"$f":"'MAQUETTE VIERGE'!D40","v":0},{"$f":"'MAQUETTE VIERGE'!G40","v":"Langue : anglais  ou italien"},{"$f":"'MAQUETTE VIERGE'!K40","v":0},{"$f":"'MAQUETTE VIERGE'!L40","v":20},{"$f":"'MAQUETTE VIERGE'!M40","v":0},null,0,0,1,20,20,null,0,0,20]
[{"$f":"'MAQUETTE VIERGE'!D41","v":0},{"$f":"'MAQUETTE VIERGE'!G41","v":"Projet Professionnel Personnel"},{"$f":"'MAQUETTE VIERGE'!K41","v":10},{"$f":"'MAQUETTE VIERGE'!L41","v":0},{"$f":"'MAQUETTE VIERGE'!M41","v":0},1,10,15,null,0,0,null,0,0,15]
[{"$f":"'MAQUETTE VIERGE'!D42","v":"UE2 : Concepts, théories et connaissances fondamentales"},{"$f":"'MAQUETTE VIERGE'!G42","v":0},{"$f":"'MAQUETTE VIERGE'!K42","v":0},{"$f":"'MAQUETTE VIERGE'!L42","v":0},{"$f":"'MAQUETTE VIERGE'!M42","v":0},null,0,0,null,0,0,null,0,0,0]
[{"$f":"'MAQUETTE VIERGE'!D43","v":0},{"$f":"'MAQUETTE VIERGE'!G43","v":"Histoire du concept de patrimoine"},{"$f":"'MAQUETTE VIERGE'!K43","v":15},{"$f":"'MAQUETTE VIERGE'!L43","v":0},{"$f":"'MAQUETTE VIERGE'!M43","v":0},1,15,22.5,null,0,0,null,0,0,22.5]
[{"$f":"'MAQUETTE VIERGE'!D44","v":0},{"$f":"'MAQUETTE VIERGE'!G44","v":"Connaissances juridiques appliquées au patrimoine"},{"$f":"'MAQUETTE VIERGE'!K44","v":18},{"$f":"'MAQUETTE VIERGE'!L44","v":0},{"$f":"'MAQUETTE VIERGE'!M44","v":0},1,18,27,null,0,0,null,0,0,27]
[{"$f":"'MAQUETTE VIERGE'!D45","v":0},{"$f":"'MAQUETTE VIERGE'!G45","v":"Histoire des musées et des institutions patrimoniales"},{"$f":"'MAQUETTE VIERGE'!K45","v":12},{"$f":"'MAQUETTE VIERGE'!L45","v":0},{"$f":"'MAQUETTE VIERGE'!M45","v":0},1,12,18,null,0,0,null,0,0,18]
[{"$f":"'MAQUETTE VIERGE'!D46","v":"UE3 : Diversité des patrimoines"},{"$f":"'MAQUETTE VIERGE'!G46","v":0},{"$f":"'MAQUETTE VIERGE'!K46","v":0},{"$f":"'MAQUETTE VIERGE'!L46","v":0},{"$f":"'MAQUETTE VIERGE'!M46","v":0},null,0,0,null,0,0,null,0,0,0]
[{"$f":"'MAQUETTE VIERGE'!D47","v":0},{"$f":"'MAQUETTE VIERGE'!G47","v":"Patrimoines traditionnels (bâti, industriel, religieux etc.)"},{"$f":"'MAQUETTE VIERGE'!K47","v":24},{"$f":"'MAQUETTE VIERGE'!L47","v":12},{"$f":"'MAQUETTE VIERGE'!M47","v":0},1,24,36,1,12,12,null,0,0,48]
[{"$f":"'MAQUETTE VIERGE'!D48","v":0},{"$f":"'MAQUETTE VIERGE'!G48","v":"Patrimoines naturels (vivants, géologique, paléontologique)/ gestion de projet "},{"$f":"'MAQUETTE VIERGE'!K48","v":8},{"$f":"'MAQUETTE VIERGE'!L48","v":12},{"$f":"'MAQUETTE VIERGE'!M48","v":0},1,8,12,1,12,12,null,0,0,24]
[{"$f":"'MAQUETTE VIERGE'!D49","v":0},{"$f":"'MAQUETTE VIERGE'!G49","v":"Nouveaux patrimoines (immatériel, colonial)"},{"$f":"'MAQUETTE VIERGE'!K49","v":10},{"$f":"'MAQUETTE VIERGE'!L49","v":12},{"$f":"'MAQUETTE VIERGE'!M49","v":0},1,10,15,1,12,12,null,0,0,27]
[{"$f":"'MAQUETTE VIERGE'!D50","v":"UE4 : Etablissements culturels et services patrimoniaux"},{"$f":"'MAQUETTE VIERGE'!G50","v":0},{"$f":"'MAQUETTE VIERGE'!K50","v":0},{"$f":"'MAQUETTE VIERGE'!L50","v":0},{"$f":"'MAQUETTE VIERGE'!M50","v":0},null,0,0,null,0,0,null,0,0,0]
[{"$f":"'MAQUETTE VIERGE'!D51","v":0},{"$f":"'MAQUETTE VIERGE'!G51","v":"Archives, musées, DRAC, cité design, memorial, Parc Naturel, association etc. (Les interventions feront prioritairement dans les structures)"},{"$f":"'MAQUETTE VIERGE'!K51","v":30},{"$f":"'MAQUETTE VIERGE'!L51","v":0},{"$f":"'MAQUETTE VIERGE'!M51","v":0},1,30,45,null,0,0,null,0,0,45]
[{"$f":"'MAQUETTE VIERGE'!D52","v":"UE5 : Compétences et connaissances professionnelles"},{"$f":"'MAQUETTE VIERGE'!G52","v":0},{"$f":"'MAQUETTE VIERGE'!K52","v":0},{"$f":"'MAQUETTE VIERGE'!L52","v":0},{"$f":"'MAQUETTE VIERGE'!M52","v":0},null,0,0,null,0,0,null,0,0,0]
[{"$f":"'MAQUETTE VIERGE'!D53","v":0},{"$f":"'MAQUETTE VIERGE'!G53","v":"Connaissances des publics (publics jeunesse, publics empêchés, etc."},{"$f":"'MAQUETTE VIERGE'!K53","v":12},{"$f":"'MAQUETTE VIERGE'!L53","v":0},{"$f":"'MAQUETTE VIERGE'!M53","v":0},1,12,18,null,0,0,null,0,0,18]
[{"$f":"'MAQUETTE VIERGE'!D54","v":0},{"$f":"'MAQUETTE VIERGE'!G54","v":"Expologie et muséographie"},{"$f":"'MAQUETTE VIERGE'!K54","v":12},{"$f":"'MAQUETTE VIERGE'!L54","v":12},{"$f":"'MAQUETTE VIERGE'!M54","v":0},1,12,18,1,12,12,null,0,0,30]
[{"$f":"'MAQUETTE VIERGE'!D55","v":0},{"$f":"'MAQUETTE VIERGE'!G55","v":"Enjeux et outils de la médiation"},{"$f":"'MAQUETTE VIERGE'!K55","v":12},{"$f":"'MAQUETTE VIERGE'!L55","v":0},{"$f":"'MAQUETTE VIERGE'!M55","v":0},1,12,18,null,0,0,null,0,0,18]
[{"$f":"'MAQUETTE VIERGE'!D56","v":0},{"$f":"'MAQUETTE VIERGE'!G56","v":0},{"$f":"'MAQUETTE VIERGE'!K56","v":0},{"$f":"'MAQUETTE VIERGE'!L56","v":0},{"$f":"'MAQUETTE VIERGE'!M56","v":0},null,0,0,null,0,0,null,0,0,0]
[{"$f":"'MAQUETTE VIERGE'!D57","v":0},{"$f":"'MAQUETTE VIERGE'!G57","v":0},{"$f":"'MAQUETTE VIERGE'!K57","v":0},{"$f":"'MAQUETTE VIERGE'!L57","v":100},{"$f":"'MAQUETTE VIERGE'!M57","v":0},null,0,0,null,0,0,null,0,0,0]
[{"$f":"'MAQUETTE VIERGE'!D58","v":0},{"$f":"'MAQUETTE VIERGE'!G58","v":0},{"$f":"'MAQUETTE VIERGE'!K58","v":0},{"$f":"'MAQUETTE VIERGE'!L58","v":0},{"$f":"'MAQUETTE VIERGE'!M58","v":0},null,0,0,null,0,0,null,0,0,0]
[{"$f":"'MAQUETTE VIERGE'!D59","v":0},{"$f":"'MAQUETTE VIERGE'!G59","v":0},{"$f":"'MAQUETTE VIERGE'!K59","v":0},{"$f":"'MAQUETTE VIERGE'!L59","v":0},{"$f":"'MAQUETTE VIERGE'!M59","v":0},null,0,0,null,0,0,null,0,0,0]
[{"$f":"'MAQUETTE VIERGE'!D60","v":0},{"$f":"'MAQUETTE VIERGE'!G60","v":0},{"$f":"'MAQUETTE VIERGE'!K60","v":0},{"$f":"'MAQUETTE VIERGE'!L60","v":0},{"$f":"'MAQUETTE VIERGE'!M60","v":0},null,0,0,null,0,0,null,0,0,0]
[{"$f":"'MAQUETTE VIERGE'!D61","v":0},{"$f":"'MAQUETTE VIERGE'!G61","v":0},{"$f":"'MAQUETTE VIERGE'!K61","v":0},{"$f":"'MAQUETTE VIERGE'!L61","v":0},{"$f":"'MAQUETTE VIERGE'!M61","v":0},null,0,0,null,0,0,null,0,0,0]
[{"$f":"'MAQUETTE VIERGE'!D62","v":0},{"$f":"'MAQUETTE VIERGE'!G62","v":0},{"$f":"'MAQUETTE VIERGE'!K62","v":0},{"$f":"'MAQUETTE VIERGE'!L62","v":0},{"$f":"'MAQUETTE VIERGE'!M62","v":0},null,0,0,null,0,0,null,0,0,0]
[{"$f":"'MAQUETTE VIERGE'!D63","v":0},{"$f":"'MAQUETTE VIERGE'!G63","v":0},{"$f":"'MAQUETTE VIERGE'!K63","v":0},{"$f":"'MAQUETTE VIERGE'!L63","v":0},{"$f":"'MAQUETTE VIERGE'!M63","v":0},null,0,0,null,0,0,null,0,0,0]
[{"$f":"'MAQUETTE VIERGE'!D64","v":0},{"$f":"'MAQUETTE VIERGE'!G64","v":0},{"$f":"'MAQUETTE VIERGE'!K64","v":0},{"$f":"'MAQUETTE VIERGE'!L64","v":0},{"$f":"'MAQUETTE VIERGE'!M64","v":0},null,0,0,null,0,0,null,0,0,0]
[{"$f":"'MAQUETTE VIERGE'!D65","v":0},{"$f":"'MAQUETTE VIERGE'!G65","v":0},{"$f":"'MAQUETTE VIERGE'!K65","v":0},{"$f":"'MAQUETTE VIERGE'!L65","v":0},{"$f":"'MAQUETTE VIERGE'!M65","v":0},null,0,0,null,0,0,null,0,0,0]
[]
[null,null,null,null,null,null,null,null,null,null,null,null,null,"TOTAL \nFace à face",{"$f":"SUM(O16:O45)","v":344.5}]
[]
["Stage / Suivi","Valorisation du suivi pour un étudiant ou pour un groupe d'étudiants","Nombre d'étudiants ou nombre de groupes suiivis","Total heures de \nsuivi"]
[null,null,null,{"$f":"C50*B50","v":0}]
[null,null,null,{"$f":"C51*B51","v":0}]
[null,null,null,0]
[null,null,null,0]
[null,null,null,0]
[null,null,null,0]
[null,null,null,0]
[null,null,null,0]
[null,null,null,0]
[null,null,null,0]
[null,null,null,0]
[null,null,null,0]
[null,null,null,0]
[null,null,null,0]
[null,null,null,0]
[]
[null,null,"TOTAL Stage/Suivi",{"$f":"SUM(D50:D64)","v":0},null,null,null,null,null,null,null,null,null,"TOTAL \nGénéral",{"$f":"O47+D66+B86","v":344.5}]
[]
[]
["Heures de référentiel / Responsabilité diplôme","Valorisation "]
[]
[]
[]
[]
[]
[]
[]
[]
[]
[]
[]
[]
[]
[]
[]
[]
["TOTAL Référentiel",{"$f":"SUM(B70:B84)","v":0}]
[]
[]
[]
[]
[]
[]
[{"$f":"'MAQUETTE VIERGE'!A90","v":"Semestre 8"}]
[]
["MAQUETTE",null,null,null,null,"Conversion en heures équivalent TD"]
["Unités d'Enseignement (UE)","Eléments constitutifs d'UE (ECUE)","Volumes horaires prévisionnels\n (temps étudiants)",null,null,"Heures prévisionnelles CM",null,null,"Heures prévisionnelles TD",null,null,"Heures prévisionnelles TP",null,null,"TOTAL"]
["Intitulés","Intitulés",null,null,null,"Nombre de groupes de CM","Heures d'enseignement CM","Heures d'enseignement équivalent TD","Nombre de groupes de TD","Heures d'enseignement TD","Heures d'enseignement équivalent TD","Nombre de groupes de TP","Heures d'enseignement TP","Heures d'enseignement équivalent TD"]
[null,null,"Enseignements"]
[null,null,"CM","TD","TP",null,"= nb groupe CM x heures CM maquette","= heures d'enseignement CM * 1,5",null,"= nb groupe TD x heures TD maquette","= heures d'enseignement TD * 1",null,"= nb groupe TD x heures TD maquette","= heures d'enseignement TD * 0,87 (1h TP équivaut en moyenne à 0,87h eqTD à l'UJM)"]
[{"$f":"'MAQUETTE VIERGE'!D97","v":"UE1 Stage de Recherche"},{"$f":"'MAQUETTE VIERGE'!G97","v":0},{"$f":"'MAQUETTE VIERGE'!K97","v":0},{"$f":"'MAQUETTE VIERGE'!L97","v":0},{"$f":"'MAQUETTE VIERGE'!M97","v":0},null,{"$f":"F100*C100","v":0},{"$f":"G100*1.5","v":0},null,{"$f":"I100*D100","v":0},{"$f":"J100*1","v":0},null,{"$f":"L100*E100","v":0},{"$f":"M100*0.87","v":0},{"$f":"H100+K100+N100","v":0}]
[{"$f":"'MAQUETTE VIERGE'!D98","v":0},{"$f":"'MAQUETTE VIERGE'!G98","v":"Stage de 3 mois à 4 mois ou mémoire de recherche (France et étranger)"},{"$f":"'MAQUETTE VIERGE'!K98","v":0},{"$f":"'MAQUETTE VIERGE'!L98","v":0},{"$f":"'MAQUETTE VIERGE'!M98","v":0},null,{"$f":"F101*C101","v":0},{"$f":"G101*1.5","v":0},null,{"$f":"I101*D101","v":0},{"$f":"J101*1","v":0},null,{"$f":"L101*E101","v":0},{"$f":"M101*0.87","v":0},{"$f":"H101+K101+N101","v":0}]
[{"$f":"'MAQUETTE VIERGE'!D99","v":0},{"$f":"'MAQUETTE VIERGE'!G99","v":0},{"$f":"'MAQUETTE VIERGE'!K99","v":0},{"$f":"'MAQUETTE VIERGE'!L99","v":0},{"$f":"'MAQUETTE VIERGE'!M99","v":0},null,0,0,null,0,0,null,0,0,0]
[{"$f":"'MAQUETTE VIERGE'!D100","v":0},{"$f":"'MAQUETTE VIERGE'!G100","v":0},{"$f":"'MAQUETTE VIERGE'!K100","v":0},{"$f":"'MAQUETTE VIERGE'!L100","v":0},{"$f":"'MAQUETTE VIERGE'!M100","v":0},null,0,0,null,0,0,null,0,0,0]
[{"$f":"'MAQUETTE VIERGE'!D101","v":0},{"$f":"'MAQUETTE VIERGE'!G101","v":0},{"$f":"'MAQUETTE VIERGE'!K101","v":0},{"$f":"'MAQUETTE VIERGE'!L101","v":0},{"$f":"'MAQUETTE VIERGE'!M101","v":0},null,0,0,null,0,0,null,0,0,0]
[{"$f":"'MAQUETTE VIERGE'!D102","v":0},{"$f":"'MAQUETTE VIERGE'!G102","v":0},{"$f":"'MAQUETTE VIERGE'!K102","v":0},{"$f":"'MAQUETTE VIERGE'!L102","v":0},{"$f":"'MAQUETTE VIERGE'!M102","v":0},null,0,0,null,0,0,null,0,0,0]
[{"$f":"'MAQUETTE VIERGE'!D103","v":0},{"$f":"'MAQUETTE VIERGE'!G103","v":0},{"$f":"'MAQUETTE VIERGE'!K103","v":0},{"$f":"'MAQUETTE VIERGE'!L103","v":0},{"$f":"'MAQUETTE VIERGE'!M103","v":0},null,0,0,null,0,0,null,0,0,0]
[{"$f":"'MAQUETTE VIERGE'!D104","v":0},{"$f":"'MAQUETTE VIERGE'!G104","v":0},{"$f":"'MAQUETTE VIERGE'!K104","v":0},{"$f":"'MAQUETTE VIERGE'!L104","v":0},{"$f":"'MAQUETTE VIERGE'!M104","v":0},null,0,0,null,0,0,null,0,0,0]
[{"$f":"'MAQUETTE VIERGE'!D105","v":0},{"$f":"'MAQUETTE VIERGE'!G105","v":0},{"$f":"'MAQUETTE VIERGE'!K105","v":0},{"$f":"'MAQUETTE VIERGE'!L105","v":0},{"$f":"'MAQUETTE VIERGE'!M105","v":0},null,0,0,null,0,0,null,0,0,0]
[{"$f":"'MAQUETTE VIERGE'!D106","v":0},{"$f":"'MAQUETTE VIERGE'!G106","v":0},{"$f":"'MAQUETTE VIERGE'!K106","v":0},{"$f":"'MAQUETTE VIERGE'!L106","v":0},{"$f":"'MAQUETTE VIERGE'!M106","v":0},null,0,0,null,0,0,null,0,0,0]
[{"$f":"'MAQUETTE VIERGE'!D107","v":0},{"$f":"'MAQUETTE VIERGE'!G107","v":0},{"$f":"'MAQUETTE VIERGE'!K107","v":0},{"$f":"'MAQUETTE VIERGE'!L107","v":0},{"$f":"'MAQUETTE VIERGE'!M107","v":0},null,0,0,null,0,0,null,0,0,0]
[{"$f":"'MAQUETTE VIERGE'!D108","v":0},{"$f":"'MAQUETTE VIERGE'!G108","v":0},{"$f":"'MAQUETTE VIERGE'!K108","v":0},{"$f":"'MAQUETTE VIERGE'!L108","v":0},{"$f":"'MAQUETTE VIERGE'!M108","v":0},null,0,0,null,0,0,null,0,0,0]
[{"$f":"'MAQUETTE VIERGE'!D109","v":0},{"$f":"'MAQUETTE VIERGE'!G109","v":0},{"$f":"'MAQUETTE VIERGE'!K109","v":0},{"$f":"'MAQUETTE VIERGE'!L109","v":0},{"$f":"'MAQUETTE VIERGE'!M109","v":0},null,0,0,null,0,0,null,0,0,0]
[{"$f":"'MAQUETTE VIERGE'!D110","v":0},{"$f":"'MAQUETTE VIERGE'!G110","v":0},{"$f":"'MAQUETTE VIERGE'!K110","v":0},{"$f":"'MAQUETTE VIERGE'!L110","v":0},{"$f":"'MAQUETTE VIERGE'!M110","v":0},null,0,0,null,0,0,null,0,0,0]
[{"$f":"'MAQUETTE VIERGE'!D111","v":0},{"$f":"'MAQUETTE VIERGE'!G111","v":0},{"$f":"'MAQUETTE VIERGE'!K111","v":0},{"$f":"'MAQUETTE VIERGE'!L111","v":0},{"$f":"'MAQUETTE VIERGE'!M111","v":0},null,0,0,null,0,0,null,0,0,0]
[{"$f":"'MAQUETTE VIERGE'!D112","v":0},{"$f":"'MAQUETTE VIERGE'!G112","v":0},{"$f":"'MAQUETTE VIERGE'!K112","v":0},{"$f":"'MAQUETTE VIERGE'!L112","v":0},{"$f":"'MAQUETTE VIERGE'!M112","v":0},null,0,0,null,0,0,null,0,0,0]
[{"$f":"'MAQUETTE VIERGE'!D113","v":0},{"$f":"'MAQUETTE VIERGE'!G113","v":0},{"$f":"'MAQUETTE VIERGE'!K113","v":0},{"$f":"'MAQUETTE VIERGE'!L113","v":0},{"$f":"'MAQUETTE VIERGE'!M113","v":0},null,0,0,null,0,0,null,0,0,0]
[{"$f":"'MAQUETTE VIERGE'!D114","v":0},{"$f":"'MAQUETTE VIERGE'!G114","v":0},{"$f":"'MAQUETTE VIERGE'!K114","v":0},{"$f":"'MAQUETTE VIERGE'!L114","v":0},{"$f":"'MAQUETTE VIERGE'!M114","v":0},null,0,0,null,0,0,null,0,0,0]
[{"$f":"'MAQUETTE VIERGE'!D115","v":0},{"$f":"'MAQUETTE VIERGE'!G115","v":0},{"$f":"'MAQUETTE VIERGE'!K115","v":0},{"$f":"'MAQUETTE VIERGE'!L115","v":0},{"$f":"'MAQUETTE VIERGE'!M115","v":0},null,0,0,null,0,0,null,0,0,0]
[{"$f":"'MAQUETTE VIERGE'!D116","v":0},{"$f":"'MAQUETTE VIERGE'!G116","v":0},{"$f":"'MAQUETTE VIERGE'!K116","v":0},{"$f":"'MAQUETTE VIERGE'!L116","v":0},{"$f":"'MAQUETTE VIERGE'!M116","v":0},null,0,0,null,0,0,null,0,0,0]
[{"$f":"'MAQUETTE VIERGE'!D117","v":0},{"$f":"'MAQUETTE VIERGE'!G117","v":0},{"$f":"'MAQUETTE VIERGE'!K117","v":0},{"$f":"'MAQUETTE VIERGE'!L117","v":0},{"$f":"'MAQUETTE VIERGE'!M117","v":0},null,0,0,null,0,0,null,0,0,0]
[{"$f":"'MAQUETTE VIERGE'!D118","v":0},{"$f":"'MAQUETTE VIERGE'!G118","v":0},{"$f":"'MAQUETTE VIERGE'!K118","v":0},{"$f":"'MAQUETTE VIERGE'!L118","v":0},{"$f":"'MAQUETTE VIERGE'!M118","v":0},null,0,0,null,0,0,null,0,0,0]
[{"$f":"'MAQUETTE VIERGE'!D119","v":0},{"$f":"'MAQUETTE VIERGE'!G119","v":0},{"$f":"'MAQUETTE VIERGE'!K119","v":0},{"$f":"'MAQUETTE VIERGE'!L119","v":0},{"$f":"'MAQUETTE VIERGE'!M119","v":0},null,0,0,null,0,0,null,0,0,0]
[{"$f":"'MAQUETTE VIERGE'!D120","v":0},{"$f":"'MAQUETTE VIERGE'!G120","v":0},{"$f":"'MAQUETTE VIERGE'!K120","v":0},{"$f":"'MAQUETTE VIERGE'!L120","v":0},{"$f":"'MAQUETTE VIERGE'!M120","v":0},null,0,0,null,0,0,null,0,0,0]
[{"$f":"'MAQUETTE VIERGE'!D121","v":0},{"$f":"'MAQUETTE VIERGE'!G121","v":0},{"$f":"'MAQUETTE VIERGE'!K121","v":0},{"$f":"'MAQUETTE VIERGE'!L121","v":0},{"$f":"'MAQUETTE VIERGE'!M121","v":0},null,0,0,null,0,0,null,0,0,0]
[{"$f":"'MAQUETTE VIERGE'!D122","v":0},{"$f":"'MAQUETTE VIERGE'!G122","v":0},{"$f":"'MAQUETTE VIERGE'!K122","v":0},{"$f":"'MAQUETTE VIERGE'!L122","v":0},{"$f":"'MAQUETTE VIERGE'!M122","v":0},null,0,0,null,0,0,null,0,0,0]
[{"$f":"'MAQUETTE VIERGE'!D123","v":0},{"$f":"'MAQUETTE VIERGE'!G123","v":0},{"$f":"'MAQUETTE VIERGE'!K123","v":0},{"$f":"'MAQUETTE VIERGE'!L123","v":0},{"$f":"'MAQUETTE VIERGE'!M123","v":0},null,0,0,null,0,0,null,0,0,0]
[{"$f":"'MAQUETTE VIERGE'!D124","v":0},{"$f":"'MAQUETTE VIERGE'!G124","v":0},{"$f":"'MAQUETTE VIERGE'!K124","v":0},{"$f":"'MAQUETTE VIERGE'!L124","v":0},{"$f":"'MAQUETTE VIERGE'!M124","v":0},null,0,0,null,0,0,null,0,0,0]
[{"$f":"'MAQUETTE VIERGE'!D125","v":0},{"$f":"'MAQUETTE VIERGE'!G125","v":0},{"$f":"'MAQUETTE VIERGE'!K125","v":0},{"$f":"'MAQUETTE VIERGE'!L125","v":0},{"$f":"'MAQUETTE VIERGE'!M125","v":0},null,0,0,null,0,0,null,0,0,0]
[{"$f":"'MAQUETTE VIERGE'!D126","v":0},{"$f":"'MAQUETTE VIERGE'!G126","v":0},{"$f":"'MAQUETTE VIERGE'!K126","v":0},{"$f":"'MAQUETTE VIERGE'!L126","v":0},{"$f":"'MAQUETTE VIERGE'!M126","v":0},null,0,0,null,0,0,null,0,0,0]
[]
[null,null,null,null,null,null,null,null,null,null,null,null,null,"TOTAL \nFace à face",{"$f":"SUM(O100:O129)","v":0}]
[]
["Stage / Suivi","Valorisation du suivi pour un étudiant ou pour un groupe d'étudiants","Nombre d'étudiants ou nombre de groupes suiivis","Total heures de \nsuivi"]
[null,null,null,{"$f":"C134*B134","v":0}]
[null,null,null,{"$f":"C135*B135","v":0}]
[null,null,null,0]
[null,null,null,0]
[null,null,null,0]
[null,null,null,0]
[null,null,null,0]
[null,null,null,0]
[null,null,null,0]
[null,null,null,0]
[null,null,null,0]
[null,null,null,0]
[null,null,null,0]
[null,null,null,0]
[null,null,null,0]
[]
[null,null,"TOTAL Stage/Suivi",{"$f":"SUM(D134:D148)","v":0},null,null,null,null,null,null,null,null,null,"TOTAL \nGénéral",{"$f":"O131+D150+B170","v":0}]
[]
[]
["Heures de référentiel / Responsabilité diplôme","Valorisation "]
[]
[]
[]
[]
[]
[]
[]
[]
[]
[]
[]
[]
[]
[]
[]
[]
["TOTAL Référentiel",{"$f":"SUM(B154:B168)","v":0}]
[]
[]
[]
[]
[]
[{"$f":"'MAQUETTE VIERGE'!$A$151","v":"Semestre 9"}]
[]
["MAQUETTE",null,null,null,null,"Conversion en heures équivalent TD"]
["Unités d'Enseignement (UE)","Eléments constitutifs d'UE (ECUE)","Volumes horaires prévisionnels\n (temps étudiants)",null,null,"Heures prévisionnelles CM",null,null,"Heures prévisionnelles TD",null,null,"Heures prévisionnelles TP",null,null,"TOTAL"]
["Intitulés","Intitulés",null,null,null,"Nombre de groupes de CM","Heures d'enseignement CM","Heures d'enseignement équivalent TD","Nombre de groupes de TD","Heures d'enseignement TD","Heures d'enseignement équivalent TD","Nombre de groupes de TP","Heures d'enseignement TP","Heures d'enseignement équivalent TD"]
[null,null,"Enseignements"]
[null,null,"CM","TD","TP",null,"= nb groupe CM x heures CM maquette","= heures d'enseignement CM * 1,5",null,"= nb groupe TD x heures TD maquette","= heures d'enseignement TD * 1",null,"= nb groupe TD x heures TD maquette","= heures d'enseignement TD * 0,87 (1h TP équivaut en moyenne à 0,87h eqTD à l'UJM)"]
[{"$f":"'MAQUETTE VIERGE'!D158","v":"UE1 : Outils et méthodes (tronc commun)"},{"$f":"'MAQUETTE VIERGE'!G158","v":0},{"$f":"'MAQUETTE VIERGE'!K158","v":0},{"$f":"'MAQUETTE VIERGE'!L158","v":0},{"$f":"'MAQUETTE VIERGE'!M158","v":0},null,{"$f":"F183*C183","v":0},{"$f":"G183*1.5","v":0},null,{"$f":"I183*D183","v":0},{"$f":"J183*1","v":0},null,{"$f":"L183*E183","v":0},{"$f":"M183*0.87","v":0},{"$f":"H183+K183+N183","v":0},null,0]
[{"$f":"'MAQUETTE VIERGE'!D159","v":0},{"$f":"'MAQUETTE VIERGE'!G159","v":"SIG (QGIS ….)"},{"$f":"'MAQUETTE VIERGE'!K159","v":0},{"$f":"'MAQUETTE VIERGE'!L159","v":28},{"$f":"'MAQUETTE VIERGE'!M159","v":0},null,{"$f":"F184*C184","v":0},{"$f":"G184*1.5","v":0},1,{"$f":"I184*D184","v":28},{"$f":"J184*1","v":28},null,{"$f":"L184*E184","v":0},{"$f":"M184*0.87","v":0},{"$f":"H184+K184+N184","v":28},null,28]
[{"$f":"'MAQUETTE VIERGE'!D160","v":0},{"$f":"'MAQUETTE VIERGE'!G160","v":"Aide à la recherche de stage"},{"$f":"'MAQUETTE VIERGE'!K160","v":0},{"$f":"'MAQUETTE VIERGE'!L160","v":8},{"$f":"'MAQUETTE VIERGE'!M160","v":0},null,0,0,1,8,8,null,0,0,8,null,6]
[{"$f":"'MAQUETTE VIERGE'!#REF!","v":{"$error":"#REF!"}},{"$f":"'MAQUETTE VIERGE'!#REF!","v":{"$error":"#REF!"}},{"$f":"'MAQUETTE VIERGE'!#REF!","v":{"$error":"#REF!"}},{"$f":"'MAQUETTE VIERGE'!#REF!","v":{"$error":"#REF!"}},{"$f":"'MAQUETTE VIERGE'!#REF!","v":{"$error":"#REF!"}},null,{"$error":"#REF!"},{"$error":"#REF!"},1,{"$error":"#REF!"},{"$error":"#REF!"},null,{"$error":"#REF!"},{"$error":"#REF!"},{"$error":"#REF!"},null,6]
[{"$f":"'MAQUETTE VIERGE'!D161","v":0},{"$f":"'MAQUETTE VIERGE'!G161","v":"Langue : Anglais ou Italien"},{"$f":"'MAQUETTE VIERGE'!K161","v":0},{"$f":"'MAQUETTE VIERGE'!L161","v":20},{"$f":"'MAQUETTE VIERGE'!M161","v":0},null,0,0,1,20,20,null,0,0,20,null,20]
[{"$f":"'MAQUETTE VIERGE'!D162","v":0},{"$f":"'MAQUETTE VIERGE'!G162","v":"Projet Professionnel Personnel"},{"$f":"'MAQUETTE VIERGE'!K162","v":10},{"$f":"'MAQUETTE VIERGE'!L162","v":0},{"$f":"'MAQUETTE VIERGE'!M162","v":0},1,10,15,null,0,0,null,0,0,15,null,15]
[{"$f":"'MAQUETTE VIERGE'!D163","v":"UE2 : Patrimoines naturels (choisir une option) "},{"$f":"'MAQUETTE VIERGE'!G163","v":0},{"$f":"'MAQUETTE VIERGE'!K163","v":0},{"$f":"'MAQUETTE VIERGE'!L163","v":0},{"$f":"'MAQUETTE VIERGE'!M163","v":0},null,0,0,null,0,0,null,0,0,0,null,0]
[{"$f":"'MAQUETTE VIERGE'!D164","v":"Option Patrimoines naturels 1"},{"$f":"'MAQUETTE VIERGE'!G164","v":0},{"$f":"'MAQUETTE VIERGE'!K164","v":0},{"$f":"'MAQUETTE VIERGE'!L164","v":0},{"$f":"'MAQUETTE VIERGE'!M164","v":0},null,0,0,null,0,0,null,0,0,0,null,0]
[{"$f":"'MAQUETTE VIERGE'!D165","v":0},{"$f":"'MAQUETTE VIERGE'!G165","v":"Patrimoines des domaines fluviaux et lacustres"},{"$f":"'MAQUETTE VIERGE'!K165","v":10},{"$f":"'MAQUETTE VIERGE'!L165","v":12},{"$f":"'MAQUETTE VIERGE'!M165","v":0},1,10,15,1,12,12,null,0,0,27,null,27]
[{"$f":"'MAQUETTE VIERGE'!#REF!","v":{"$error":"#REF!"}},{"$f":"'MAQUETTE VIERGE'!#REF!","v":{"$error":"#REF!"}},{"$f":"'MAQUETTE VIERGE'!#REF!","v":{"$error":"#REF!"}},{"$f":"'MAQUETTE VIERGE'!#REF!","v":{"$error":"#REF!"}},{"$f":"'MAQUETTE VIERGE'!#REF!","v":{"$error":"#REF!"}},1,{"$error":"#REF!"},{"$error":"#REF!"},1,{"$error":"#REF!"},{"$error":"#REF!"},null,{"$error":"#REF!"},{"$error":"#REF!"},{"$error":"#REF!"},null,24]
[{"$f":"'MAQUETTE VIERGE'!D167","v":0},{"$f":"'MAQUETTE VIERGE'!G167","v":"Patrimoines géologiques et  paléontologiques "},{"$f":"'MAQUETTE VIERGE'!K167","v":8},{"$f":"'MAQUETTE VIERGE'!L167","v":20},{"$f":"'MAQUETTE VIERGE'!M167","v":0},1,8,12,1,20,20,null,0,0,32,null,32]
[{"$f":"'MAQUETTE VIERGE'!#REF!","v":{"$error":"#REF!"}},{"$f":"'MAQUETTE VIERGE'!#REF!","v":{"$error":"#REF!"}},{"$f":"'MAQUETTE VIERGE'!#REF!","v":{"$error":"#REF!"}},{"$f":"'MAQUETTE VIERGE'!#REF!","v":{"$error":"#REF!"}},{"$f":"'MAQUETTE VIERGE'!#REF!","v":{"$error":"#REF!"}},null,{"$error":"#REF!"},{"$error":"#REF!"},null,{"$error":"#REF!"},{"$error":"#REF!"},null,{"$error":"#REF!"},{"$error":"#REF!"},{"$error":"#REF!"},null,0]
[{"$f":"'MAQUETTE VIERGE'!#REF!","v":{"$error":"#REF!"}},{"$f":"'MAQUETTE VIERGE'!#REF!","v":{"$error":"#REF!"}},{"$f":"'MAQUETTE VIERGE'!#REF!","v":{"$error":"#REF!"}},{"$f":"'MAQUETTE VIERGE'!#REF!","v":{"$error":"#REF!"}},{"$f":"'MAQUETTE VIERGE'!#REF!","v":{"$error":"#REF!"}},null,{"$error":"#REF!"},{"$error":"#REF!"},1,{"$error":"#REF!"},{"$error":"#REF!"},null,{"$error":"#REF!"},{"$error":"#REF!"},{"$error":"#REF!"},null,20]
[{"$f":"'MAQUETTE VIERGE'!#REF!","v":{"$error":"#REF!"}},{"$f":"'MAQUETTE VIERGE'!#REF!","v":{"$error":"#REF!"}},{"$f":"'MAQUETTE VIERGE'!#REF!","v":{"$error":"#REF!"}},{"$f":"'MAQUETTE VIERGE'!#REF!","v":{"$error":"#REF!"}},{"$f":"'MAQUETTE VIERGE'!#REF!","v":{"$error":"#REF!"}},null,{"$error":"#REF!"},{"$error":"#REF!"},1,{"$error":"#REF!"},{"$error":"#REF!"},null,{"$error":"#REF!"},{"$error":"#REF!"},{"$error":"#REF!"},null,18]
[{"$f":"'MAQUETTE VIERGE'!#REF!","v":{"$error":"#REF!"}},{"$f":"'MAQUETTE VIERGE'!#REF!","v":{"$error":"#REF!"}},{"$f":"'MAQUETTE VIERGE'!#REF!","v":{"$error":"#REF!"}},{"$f":"'MAQUETTE VIERGE'!#REF!","v":{"$error":"#REF!"}},{"$f":"'MAQUETTE VIERGE'!#REF!","v":{"$error":"#REF!"}},null,{"$error":"#REF!"},{"$error":"#REF!"},1,{"$error":"#REF!"},{"$error":"#REF!"},null,{"$error":"#REF!"},{"$error":"#REF!"},{"$error":"#REF!"},null,18]
[{"$f":"'MAQUETTE VIERGE'!#REF!","v":{"$error":"#REF!"}},{"$f":"'MAQUETTE VIERGE'!#REF!","v":{"$error":"#REF!"}},{"$f":"'MAQUETTE VIERGE'!#REF!","v":{"$error":"#REF!"}},{"$f":"'MAQUETTE VIERGE'!#REF!","v":{"$error":"#REF!"}},{"$f":"'MAQUETTE VIERGE'!#REF!","v":{"$error":"#REF!"}},null,{"$error":"#REF!"},{"$error":"#REF!"},1,{"$error":"#REF!"},{"$error":"#REF!"},null,{"$error":"#REF!"},{"$error":"#REF!"},{"$error":"#REF!"},null,12]
[{"$f":"'MAQUETTE VIERGE'!#REF!","v":{"$error":"#REF!"}},{"$f":"'MAQUETTE VIERGE'!#REF!","v":{"$error":"#REF!"}},{"$f":"'MAQUETTE VIERGE'!#REF!","v":{"$error":"#REF!"}},{"$f":"'MAQUETTE VIERGE'!#REF!","v":{"$error":"#REF!"}},{"$f":"'MAQUETTE VIERGE'!#REF!","v":{"$error":"#REF!"}},1,{"$error":"#REF!"},{"$error":"#REF!"},1,{"$error":"#REF!"},{"$error":"#REF!"},null,{"$error":"#REF!"},{"$error":"#REF!"},{"$error":"#REF!"},null,6]
[{"$f":"'MAQUETTE VIERGE'!D172","v":"UE3 : Outils numériques (choisir une option) "},{"$f":"'MAQUETTE VIERGE'!G172","v":0},{"$f":"'MAQUETTE VIERGE'!K172","v":0},{"$f":"'MAQUETTE VIERGE'!L172","v":0},{"$f":"'MAQUETTE VIERGE'!M172","v":0},null,0,0,null,0,0,null,0,0,0,null,0]
[{"$f":"'MAQUETTE VIERGE'!D173","v":"Option Outils numériques 1 "},{"$f":"'MAQUETTE VIERGE'!G173","v":0},{"$f":"'MAQUETTE VIERGE'!K173","v":0},{"$f":"'MAQUETTE VIERGE'!L173","v":0},{"$f":"'MAQUETTE VIERGE'!M173","v":0},null,0,0,null,0,0,null,0,0,0,null,0]
[{"$f":"'MAQUETTE VIERGE'!D174","v":0},{"$f":"'MAQUETTE VIERGE'!G174","v":"Nouvelles pratiques numériques pour les patrimoines "},{"$f":"'MAQUETTE VIERGE'!K174","v":0},{"$f":"'MAQUETTE VIERGE'!L174","v":20},{"$f":"'MAQUETTE VIERGE'!M174","v":0},1,0,0,1,20,20,null,0,0,20,null,36]
[{"$f":"'MAQUETTE VIERGE'!D175","v":0},{"$f":"'MAQUETTE VIERGE'!G175","v":"3D (modélisation , Sfm, jeux vidéo et réalité virtuelle) "},{"$f":"'MAQUETTE VIERGE'!K175","v":0},{"$f":"'MAQUETTE VIERGE'!L175","v":18},{"$f":"'MAQUETTE VIERGE'!M175","v":0},1,0,0,1,18,18,null,0,0,18,null,33]
[{"$f":"'MAQUETTE VIERGE'!D176","v":0},{"$f":"'MAQUETTE VIERGE'!G176","v":"Cartographie et sémiologie "},{"$f":"'MAQUETTE VIERGE'!K176","v":0},{"$f":"'MAQUETTE VIERGE'!L176","v":14},{"$f":"'MAQUETTE VIERGE'!M176","v":0},1,0,0,null,0,0,null,0,0,0,null,21]
[{"$f":"'MAQUETTE VIERGE'!D178","v":"Option Outils numériques 2 "},{"$f":"'MAQUETTE VIERGE'!G178","v":0},{"$f":"'MAQUETTE VIERGE'!K178","v":0},{"$f":"'MAQUETTE VIERGE'!L178","v":0},{"$f":"'MAQUETTE VIERGE'!M178","v":0},null,0,0,null,0,0,null,0,0,0,null,0]
[{"$f":"'MAQUETTE VIERGE'!D179","v":0},{"$f":"'MAQUETTE VIERGE'!G179","v":"PAO, DAO, Print"},{"$f":"'MAQUETTE VIERGE'!K179","v":0},{"$f":"'MAQUETTE VIERGE'!L179","v":12},{"$f":"'MAQUETTE VIERGE'!M179","v":0},null,0,0,1,12,12,null,0,0,12,null,12]
[{"$f":"'MAQUETTE VIERGE'!D180","v":0},{"$f":"'MAQUETTE VIERGE'!G180","v":"Communiquer sur le patrimoine (outils Web réseaux sociaux, vidéo, audios …)"},{"$f":"'MAQUETTE VIERGE'!K180","v":0},{"$f":"'MAQUETTE VIERGE'!L180","v":11},{"$f":"'MAQUETTE VIERGE'!M180","v":0},null,0,0,1,11,11,null,0,0,11,null,11]
[{"$f":"'MAQUETTE VIERGE'!D181","v":0},{"$f":"'MAQUETTE VIERGE'!G181","v":"Nouveaux outils interactifs et muséographie (vidéos, bornes, tablettes, réalité augmentée, application smartphone …)"},{"$f":"'MAQUETTE VIERGE'!K181","v":0},{"$f":"'MAQUETTE VIERGE'!L181","v":24},{"$f":"'MAQUETTE VIERGE'!M181","v":0},null,0,0,1,24,24,null,0,0,24,null,24]
[{"$f":"'MAQUETTE VIERGE'!D182","v":0},{"$f":"'MAQUETTE VIERGE'!G182","v":"Numériser le patrimoine"},{"$f":"'MAQUETTE VIERGE'!K182","v":4},{"$f":"'MAQUETTE VIERGE'!L182","v":0},{"$f":"'MAQUETTE VIERGE'!M182","v":0},1,4,6,null,0,0,null,0,0,6,null,6]
[{"$f":"'MAQUETTE VIERGE'!D183","v":0},{"$f":"'MAQUETTE VIERGE'!G183","v":"Fabriquer une enquête"},{"$f":"'MAQUETTE VIERGE'!K183","v":0},{"$f":"'MAQUETTE VIERGE'!L183","v":6},{"$f":"'MAQUETTE VIERGE'!M183","v":0},null,0,0,1,6,6,null,0,0,6,null,6]
[{"$f":"'MAQUETTE VIERGE'!D184","v":"UE4 : Etablissements culturels et services patrimoniaux"},{"$f":"'MAQUETTE VIERGE'!G184","v":0},{"$f":"'MAQUETTE VIERGE'!K184","v":0},{"$f":"'MAQUETTE VIERGE'!L184","v":0},{"$f":"'MAQUETTE VIERGE'!M184","v":0},null,{"$f":"F211*C211","v":0},{"$f":"G211*1.5","v":0},null,{"$f":"I211*D211","v":0},{"$f":"J211*1","v":0},null,{"$f":"L211*E211","v":0},{"$f":"M211*0.87","v":0},{"$f":"H211+K211+N211","v":0},null,0]
[{"$f":"'MAQUETTE VIERGE'!D185","v":0},{"$f":"'MAQUETTE VIERGE'!G185","v":"Les gestionnaires du patrimoine (Archives, musées, muséums, services de l'Etat, associations, fondations …)"},{"$f":"'MAQUETTE VIERGE'!K185","v":9},{"$f":"'MAQUETTE VIERGE'!L185","v":6},{"$f":"'MAQUETTE VIERGE'!M185","v":0},1,9,13.5,1,6,6,null,0,0,19.5,null,19.5]
[{"$f":"'MAQUETTE VIERGE'!D187","v":"UE5 : Compétences et connaissances professionnelles"},{"$f":"'MAQUETTE VIERGE'!G187","v":0},{"$f":"'MAQUETTE VIERGE'!K187","v":0},{"$f":"'MAQUETTE VIERGE'!L187","v":0},{"$f":"'MAQUETTE VIERGE'!M187","v":0},null,0,0,1,0,0,null,0,0,{"$f":"H213+K213+N213","v":0},null,0]
[{"$f":"'MAQUETTE VIERGE'!D188","v":0},{"$f":"'MAQUETTE VIERGE'!G188","v":"Connaissances des publics"},{"$f":"'MAQUETTE VIERGE'!K188","v":10},{"$f":"'MAQUETTE VIERGE'!L188","v":0},{"$f":"'MAQUETTE VIERGE'!M188","v":0},1,10,15,1,0,0,null,0,0,{"$f":"H214+K214+N214","v":15},null,15]
[{"$f":"'MAQUETTE VIERGE'!D189","v":0},{"$f":"'MAQUETTE VIERGE'!G189","v":"Expologie et muséographie"},{"$f":"'MAQUETTE VIERGE'!K189","v":10},{"$f":"'MAQUETTE VIERGE'!L189","v":0},{"$f":"'MAQUETTE VIERGE'!M189","v":0},1,10,15,null,0,0,null,0,0,15,null,15]
[{"$f":"'MAQUETTE VIERGE'!D190","v":0},{"$f":"'MAQUETTE VIERGE'!G190","v":"Médiations : enjeux et outils"},{"$f":"'MAQUETTE VIERGE'!K190","v":10},{"$f":"'MAQUETTE VIERGE'!L190","v":0},{"$f":"'MAQUETTE VIERGE'!M190","v":0},1,10,15,1,0,0,null,0,0,15,null,15]
[{"$f":"'MAQUETTE VIERGE'!D191","v":0},{"$f":"'MAQUETTE VIERGE'!G191","v":0},null,null,{"$f":"'MAQUETTE VIERGE'!M191","v":0},null,0,0,null,0,0,null,0,0,0,null,0]
[{"$f":"'MAQUETTE VIERGE'!D195","v":0},{"$f":"'MAQUETTE VIERGE'!G195","v":0},{"$f":"'MAQUETTE VIERGE'!K195","v":0},{"$f":"'MAQUETTE VIERGE'!L195","v":0},{"$f":"'MAQUETTE VIERGE'!M195","v":0},null,0,0,1,0,0,null,0,0,0,null,0]
[{"$f":"'MAQUETTE VIERGE'!D196","v":0},{"$f":"'MAQUETTE VIERGE'!G196","v":0},{"$f":"'MAQUETTE VIERGE'!K196","v":0},{"$f":"'MAQUETTE VIERGE'!L196","v":0},{"$f":"'MAQUETTE VIERGE'!M196","v":0},null,0,0,1,0,0,null,0,0]
[]
[]
[]
[]
[null,null,null,null,null,null,null,null,null,null,null,null,null,"TOTAL \nFace à face",{"$f":"SUM(O183:O222)","v":{"$error":"#REF!"}},null,{"$f":"SUM(Q183:Q221)","v":445.5}]
[]
["Stage / Suivi","Valorisation du suivi pour un étudiant ou pour un groupe d'étudiants","Nombre d'étudiants ou nombre de groupes suiivis","Total heures de \nsuivi"]
[null,null,null,{"$f":"C227*B227","v":0}]
[null,null,null,{"$f":"C228*B228","v":0}]
[null,null,null,0]
[null,null,null,0]
[null,null,null,0]
[null,null,null,0]
[null,null,null,0]
[null,null,null,0]
[null,null,null,0]
[null,null,null,0]
[null,null,null,0]
[null,null,null,0]
[null,null,null,0]
[null,null,null,0]
[null,null,null,0]
[]
[null,null,"TOTAL Stage/Suivi",{"$f":"SUM(D227:D241)","v":0},null,null,null,null,null,null,null,null,null,"TOTAL \nGénéral",{"$f":"O224+D243+B263","v":{"$error":"#REF!"}}]
[]
[]
["Heures de référentiel / Responsabilité diplôme","Valorisation "]
[]
[]
[]
[]
[]
[]
[]
[]
[]
[]
[]
[]
[]
[]
[]
[]
["TOTAL Référentiel",{"$f":"SUM(B247:B261)","v":0}]
[]
[]
[]
[]
[]
[]
[]
[{"$f":"'MAQUETTE VIERGE'!$A$214","v":"Semestre 10"}]
[]
["MAQUETTE",null,null,null,null,"Conversion en heures équivalent TD"]
["Unités d'Enseignement (UE)","Eléments constitutifs d'UE (ECUE)","Volumes horaires prévisionnels\n (temps étudiants)",null,null,"Heures prévisionnelles CM",null,null,"Heures prévisionnelles TD",null,null,"Heures prévisionnelles TP",null,null,"TOTAL"]
["Intitulés","Intitulés",null,null,null,"Nombre de groupes de CM","Heures d'enseignement CM","Heures d'enseignement équivalent TD","Nombre de groupes de TD","Heures d'enseignement TD","Heures d'enseignement équivalent TD","Nombre de groupes de TP","Heures d'enseignement TP","Heures d'enseignement équivalent TD"]
[null,null,"Enseignements"]
[null,null,"CM","TD","TP",null,"= nb groupe CM x heures CM maquette","= heures d'enseignement CM * 1,5",null,"= nb groupe TD x heures TD maquette","= heures d'enseignement TD * 1",null,"= nb groupe TD x heures TD maquette","= heures d'enseignement TD * 0,87 (1h TP équivaut en moyenne à 0,87h eqTD à l'UJM)"]
[{"$f":"'MAQUETTE VIERGE'!D221","v":"UE1 Stage professionnel ou stage recherche"},{"$f":"'MAQUETTE VIERGE'!G221","v":0},{"$f":"'MAQUETTE VIERGE'!K221","v":0},{"$f":"'MAQUETTE VIERGE'!L221","v":0},{"$f":"'MAQUETTE VIERGE'!M221","v":0},null,{"$f":"F278*C278","v":0},{"$f":"G278*1.5","v":0},null,{"$f":"I278*D278","v":0},{"$f":"J278*1","v":0},null,{"$f":"L278*E278","v":0},{"$f":"M278*0.87","v":0},{"$f":"H278+K278+N278","v":0}]
[{"$f":"'MAQUETTE VIERGE'!D222","v":0},{"$f":"'MAQUETTE VIERGE'!G222","v":"Stage ou mémoire de recherche  (heures par étudiant)"},{"$f":"'MAQUETTE VIERGE'!K222","v":0},{"$f":"'MAQUETTE VIERGE'!L222","v":3},{"$f":"'MAQUETTE VIERGE'!M222","v":0},null,{"$f":"F279*C279","v":0},{"$f":"G279*1.5","v":0},null,{"$f":"I279*D279","v":0},{"$f":"J279*1","v":0},null,{"$f":"L279*E279","v":0},{"$f":"M279*0.87","v":0},{"$f":"H279+K279+N279","v":0}]
[{"$f":"'MAQUETTE VIERGE'!D223","v":0},{"$f":"'MAQUETTE VIERGE'!G223","v":0},{"$f":"'MAQUETTE VIERGE'!K223","v":0},{"$f":"'MAQUETTE VIERGE'!L223","v":0},{"$f":"'MAQUETTE VIERGE'!M223","v":0},null,0,0,null,0,0,null,0,0,0]
[{"$f":"'MAQUETTE VIERGE'!D224","v":0},{"$f":"'MAQUETTE VIERGE'!G224","v":0},{"$f":"'MAQUETTE VIERGE'!K224","v":0},{"$f":"'MAQUETTE VIERGE'!L224","v":0},{"$f":"'MAQUETTE VIERGE'!M224","v":0},null,0,0,null,0,0,null,0,0,0]
[{"$f":"'MAQUETTE VIERGE'!D225","v":0},{"$f":"'MAQUETTE VIERGE'!G225","v":0},{"$f":"'MAQUETTE VIERGE'!K225","v":0},{"$f":"'MAQUETTE VIERGE'!L225","v":0},{"$f":"'MAQUETTE VIERGE'!M225","v":0},null,0,0,null,0,0,null,0,0,0]
[{"$f":"'MAQUETTE VIERGE'!D226","v":0},{"$f":"'MAQUETTE VIERGE'!G226","v":0},{"$f":"'MAQUETTE VIERGE'!K226","v":0},{"$f":"'MAQUETTE VIERGE'!L226","v":0},{"$f":"'MAQUETTE VIERGE'!M226","v":0},null,0,0,null,0,0,null,0,0,0]
[{"$f":"'MAQUETTE VIERGE'!D227","v":0},{"$f":"'MAQUETTE VIERGE'!G227","v":0},{"$f":"'MAQUETTE VIERGE'!K227","v":0},{"$f":"'MAQUETTE VIERGE'!L227","v":0},{"$f":"'MAQUETTE VIERGE'!M227","v":0},null,0,0,null,0,0,null,0,0,0]
[{"$f":"'MAQUETTE VIERGE'!D228","v":0},{"$f":"'MAQUETTE VIERGE'!G228","v":0},{"$f":"'MAQUETTE VIERGE'!K228","v":0},{"$f":"'MAQUETTE VIERGE'!L228","v":0},{"$f":"'MAQUETTE VIERGE'!M228","v":0},null,0,0,null,0,0,null,0,0,0]
[{"$f":"'MAQUETTE VIERGE'!D229","v":0},{"$f":"'MAQUETTE VIERGE'!G229","v":0},{"$f":"'MAQUETTE VIERGE'!K229","v":0},{"$f":"'MAQUETTE VIERGE'!L229","v":0},{"$f":"'MAQUETTE VIERGE'!M229","v":0},null,0,0,null,0,0,null,0,0,0]
[{"$f":"'MAQUETTE VIERGE'!D230","v":0},{"$f":"'MAQUETTE VIERGE'!G230","v":0},{"$f":"'MAQUETTE VIERGE'!K230","v":0},{"$f":"'MAQUETTE VIERGE'!L230","v":0},{"$f":"'MAQUETTE VIERGE'!M230","v":0},null,0,0,null,0,0,null,0,0,0]
[{"$f":"'MAQUETTE VIERGE'!D231","v":0},{"$f":"'MAQUETTE VIERGE'!G231","v":0},{"$f":"'MAQUETTE VIERGE'!K231","v":0},{"$f":"'MAQUETTE VIERGE'!L231","v":0},{"$f":"'MAQUETTE VIERGE'!M231","v":0},null,0,0,null,0,0,null,0,0,0]
[{"$f":"'MAQUETTE VIERGE'!D232","v":0},{"$f":"'MAQUETTE VIERGE'!G232","v":0},{"$f":"'MAQUETTE VIERGE'!K232","v":0},{"$f":"'MAQUETTE VIERGE'!L232","v":0},{"$f":"'MAQUETTE VIERGE'!M232","v":0},null,0,0,null,0,0,null,0,0,0]
[{"$f":"'MAQUETTE VIERGE'!D233","v":0},{"$f":"'MAQUETTE VIERGE'!G233","v":0},{"$f":"'MAQUETTE VIERGE'!K233","v":0},{"$f":"'MAQUETTE VIERGE'!L233","v":0},{"$f":"'MAQUETTE VIERGE'!M233","v":0},null,0,0,null,0,0,null,0,0,0]
[{"$f":"'MAQUETTE VIERGE'!D234","v":0},{"$f":"'MAQUETTE VIERGE'!G234","v":0},{"$f":"'MAQUETTE VIERGE'!K234","v":0},{"$f":"'MAQUETTE VIERGE'!L234","v":0},{"$f":"'MAQUETTE VIERGE'!M234","v":0},null,0,0,null,0,0,null,0,0,0]
[{"$f":"'MAQUETTE VIERGE'!D235","v":0},{"$f":"'MAQUETTE VIERGE'!G235","v":0},{"$f":"'MAQUETTE VIERGE'!K235","v":0},{"$f":"'MAQUETTE VIERGE'!L235","v":0},{"$f":"'MAQUETTE VIERGE'!M235","v":0},null,0,0,null,0,0,null,0,0,0]
[{"$f":"'MAQUETTE VIERGE'!D236","v":0},{"$f":"'MAQUETTE VIERGE'!G236","v":0},{"$f":"'MAQUETTE VIERGE'!K236","v":0},{"$f":"'MAQUETTE VIERGE'!L236","v":0},{"$f":"'MAQUETTE VIERGE'!M236","v":0},null,0,0,null,0,0,null,0,0,0]
[{"$f":"'MAQUETTE VIERGE'!D237","v":0},{"$f":"'MAQUETTE VIERGE'!G237","v":0},{"$f":"'MAQUETTE VIERGE'!K237","v":0},{"$f":"'MAQUETTE VIERGE'!L237","v":0},{"$f":"'MAQUETTE VIERGE'!M237","v":0},null,0,0,null,0,0,null,0,0,0]
[{"$f":"'MAQUETTE VIERGE'!D238","v":0},{"$f":"'MAQUETTE VIERGE'!G238","v":0},{"$f":"'MAQUETTE VIERGE'!K238","v":0},{"$f":"'MAQUETTE VIERGE'!L238","v":0},{"$f":"'MAQUETTE VIERGE'!M238","v":0},null,0,0,null,0,0,null,0,0,0]
[{"$f":"'MAQUETTE VIERGE'!D239","v":0},{"$f":"'MAQUETTE VIERGE'!G239","v":0},{"$f":"'MAQUETTE VIERGE'!K239","v":0},{"$f":"'MAQUETTE VIERGE'!L239","v":0},{"$f":"'MAQUETTE VIERGE'!M239","v":0},null,0,0,null,0,0,null,0,0,0]
[{"$f":"'MAQUETTE VIERGE'!D240","v":0},{"$f":"'MAQUETTE VIERGE'!G240","v":0},{"$f":"'MAQUETTE VIERGE'!K240","v":0},{"$f":"'MAQUETTE VIERGE'!L240","v":0},{"$f":"'MAQUETTE VIERGE'!M240","v":0},null,0,0,null,0,0,null,0,0,0]
[{"$f":"'MAQUETTE VIERGE'!D241","v":0},{"$f":"'MAQUETTE VIERGE'!G241","v":0},{"$f":"'MAQUETTE VIERGE'!K241","v":0},{"$f":"'MAQUETTE VIERGE'!L241","v":0},{"$f":"'MAQUETTE VIERGE'!M241","v":0},null,0,0,null,0,0,null,0,0,0]
[{"$f":"'MAQUETTE VIERGE'!D242","v":0},{"$f":"'MAQUETTE VIERGE'!G242","v":0},{"$f":"'MAQUETTE VIERGE'!K242","v":0},{"$f":"'MAQUETTE VIERGE'!L242","v":0},{"$f":"'MAQUETTE VIERGE'!M242","v":0},null,0,0,null,0,0,null,0,0,0]
[{"$f":"'MAQUETTE VIERGE'!D243","v":0},{"$f":"'MAQUETTE VIERGE'!G243","v":0},{"$f":"'MAQUETTE VIERGE'!K243","v":0},{"$f":"'MAQUETTE VIERGE'!L243","v":0},{"$f":"'MAQUETTE VIERGE'!M243","v":0},null,0,0,null,0,0,null,0,0,0]
[{"$f":"'MAQUETTE VIERGE'!D244","v":0},{"$f":"'MAQUETTE VIERGE'!G244","v":0},{"$f":"'MAQUETTE VIERGE'!K244","v":0},{"$f":"'MAQUETTE VIERGE'!L244","v":0},{"$f":"'MAQUETTE VIERGE'!M244","v":0},null,0,0,null,0,0,null,0,0,0]
[{"$f":"'MAQUETTE VIERGE'!D245","v":0},{"$f":"'MAQUETTE VIERGE'!G245","v":0},{"$f":"'MAQUETTE VIERGE'!K245","v":0},{"$f":"'MAQUETTE VIERGE'!L245","v":0},{"$f":"'MAQUETTE VIERGE'!M245","v":0},null,0,0,null,0,0,null,0,0,0]
[{"$f":"'MAQUETTE VIERGE'!D246","v":0},{"$f":"'MAQUETTE VIERGE'!G246","v":0},{"$f":"'MAQUETTE VIERGE'!K246","v":0},{"$f":"'MAQUETTE VIERGE'!L246","v":0},{"$f":"'MAQUETTE VIERGE'!M246","v":0},null,0,0,null,0,0,null,0,0,0]
[{"$f":"'MAQUETTE VIERGE'!D247","v":0},{"$f":"'MAQUETTE VIERGE'!G247","v":0},{"$f":"'MAQUETTE VIERGE'!K247","v":0},{"$f":"'MAQUETTE VIERGE'!L247","v":0},{"$f":"'MAQUETTE VIERGE'!M247","v":0},null,0,0,null,0,0,null,0,0,0]
[{"$f":"'MAQUETTE VIERGE'!D248","v":0},{"$f":"'MAQUETTE VIERGE'!G248","v":0},{"$f":"'MAQUETTE VIERGE'!K248","v":0},{"$f":"'MAQUETTE VIERGE'!L248","v":0},{"$f":"'MAQUETTE VIERGE'!M248","v":0},null,0,0,null,0,0,null,0,0,0]
[{"$f":"'MAQUETTE VIERGE'!D249","v":0},{"$f":"'MAQUETTE VIERGE'!G249","v":0},{"$f":"'MAQUETTE VIERGE'!K249","v":0},{"$f":"'MAQUETTE VIERGE'!L249","v":0},{"$f":"'MAQUETTE VIERGE'!M249","v":0},null,0,0,null,0,0,null,0,0,0]
[{"$f":"'MAQUETTE VIERGE'!D250","v":0},{"$f":"'MAQUETTE VIERGE'!G250","v":0},{"$f":"'MAQUETTE VIERGE'!K250","v":0},{"$f":"'MAQUETTE VIERGE'!L250","v":0},{"$f":"'MAQUETTE VIERGE'!M250","v":0},null,0,0,null,0,0,null,0,0,0]
[]
[null,null,null,null,null,null,null,null,null,null,null,null,null,"TOTAL \nFace à face",{"$f":"SUM(O278:O307)","v":0}]
[]
["Stage / Suivi","Valorisation du suivi pour un étudiant ou pour un groupe d'étudiants","Nombre d'étudiants ou nombre de groupes suiivis","Total heures de \nsuivi"]
[null,null,null,{"$f":"C312*B312","v":0}]
[null,null,null,{"$f":"C313*B313","v":0}]
[null,null,null,0]
[null,null,null,0]
[null,null,null,0]
[null,null,null,0]
[null,null,null,0]
[null,null,null,0]
[null,null,null,0]
[null,null,null,0]
[null,null,null,0]
[null,null,null,0]
[null,null,null,0]
[null,null,null,0]
[null,null,null,0]
[]
[null,null,"TOTAL Stage/Suivi",{"$f":"SUM(D312:D326)","v":0},null,null,null,null,null,null,null,null,null,"TOTAL \nGénéral",{"$f":"O309+D328+B348","v":0}]
[]
[]
["Heures de référentiel / Responsabilité diplôme","Valorisation "]
[]
[]
[]
[]
[]
[]
[]
[]
[]
[]
[]
[]
[]
[]
[]
[]
["TOTAL Référentiel",{"$f":"SUM(B332:B346)","v":0}]

{"sheet":"MUTUALISATIONS","index":3,"n_rows":6,"n_cols":1,"rows_kept":6,"cut":false,"hidden":false,"merged":[]}
[]
[]
[]
[]
[]
["Eléments mutualisés ou potentiellement mutualisables"]

{"sheet":"extraction base OF","index":4,"n_rows":89,"n_cols":14,"rows_kept":89,"cut":false,"hidden":true,"merged":[]}
["DIPLÔME","MENTION / INTITULE","PARCOURS","NUMERO  D'ACCREDITATION","CO-ACCREDITATION","NUMERO RNCP","DATE 1ère PRESENTATION  CFVU","MAQUETTE INITIALE","DATE  DERNIERE PRESENTATION  CFVU","MAQUETTE DERNIERE VERSION","FORMATION  INITIALE OU CONTINUE","CONTRAT  D'APPRENTISSAGE","CONTRAT PRO","STAGE"]
["master","arts","administration et gestion de la musique","20160566","-","34834","29/04/2016","MAQUETTES INITIALES\\MI_ALL_MASTER_ arts_administration et gestion de la musique.xlsx","08/07/2021","MAQUETTES MODIFIEES\\MM_ALL_MASTER_arts_administration et gestion de la musique_08.07.2021.pdf","initiale","non","non","non"]
["master","arts","arts plastiques","20160566","-","34834","29/04/2016","MAQUETTES INITIALES\\MI_ALL_MASTER_ arts_arts plastiques.xlsx","-","non concerné","initiale","non","non","oui"]
["master","arts","création contemporaine et nouvelles technologies","20160566","-","34834",null,"A venir","-","non concerné","initiale","non","non"]
["master","arts","création et recherche en arts plastiques","20160566","ENSASE","34834",null,"A venir","-","non concerné","initiale","non","non"]
["master","arts","édition d’art et livre d’artiste","20160566","-","34834","29/04/2016","MAQUETTES INITIALES\\MI_ALL_MASTER_arts_édition d'art livre d'artiste.xlsx","-","non concerné","initiale","non","non","oui"]
["master","arts","musique et musicologie","20160566","-","34834","29/04/2016","MAQUETTES INITIALES\\MI_ALL_MASTER_arts_musique et musicologie.xlsx","03/05/2019","MAQUETTES MODIFIEES\\MM_ALL_MASTER_arts_musique et musicologie_03.05.2019.xlsx","initiale","non","non","oui"]
["master","arts","sciences de l’art","20160566","-","34834","29/04/2016","MAQUETTES INITIALES\\MI_ALL_MASTER_arts_science de l'art.xlsx","-","non concerné","initiale","non","non","oui"]
["master","design","métiers et industrie d'art","20160567","ENMSE, ESADSE","34439","29/04/2016","MAQUETTES INITIALES\\MI_ALL_MASTER_design_métiers d'art et d'industrie.xlsx",null,"A venir","initiale","non","non","non"]
["master","didactique des langues","FLE, ingénierie des formations en langues","20160396","-","34841","-","MAQUETTES INITIALES\\MI_ALL_MASTER_didactique des langues_ingenierie formations.xlsx",null,"A venir","initiale","non","non","non"]
["master","didactique des langues","sociodidactique, valorisation de la diversité linguistique et culturelle","20160396","-","34841","29/04/2016","MAQUETTES INITIALES\\MI_ALL_MASTER_didactique des langues_sociodidactique.xlsx",null,"A venir","initiale","non","non","non"]
["master","langues étrangères appliquées","relations commerciales internationales","20160398","Lyon 2, Lyon 3","34101","29/04/2016","MAQUETTES INITIALES\\MI_ALL_MASTER_LEA.xlsx","08/07/2021","MAQUETTES MODIFIEES\\MM_ALL_MASTER_RCI_08.07.2021.pdf","initiale","non","non","oui"]
["master","langues, littératures et civilisations étrangères et régionales","cultures et interculturalité des médias dans les mondes espagnol et latino-américain","20160399",null,"31503","29/04/2016","MAQUETTES INITIALES\\MI_ALL_MASTER_LLCER_études hispaniques.xlsx",null,"A venir","initiale","non","non","oui"]
["master","langues, littératures et civilisations étrangères et régionales","études anglophones","20160399","Lyon 2, Lyon 3, ENS Lyon","31503","29/04/2016","MAQUETTES INITIALES\\MI_ALL_MASTER_LLCER_études anglophones.xlsx","08/07/2021","MAQUETTES MODIFIEES\\MM_ALL_MASTER_études anglophones_08.07.2021.pdf","initiale","non","non","oui"]
["master","lettres","art dramatique","20141581","Lyon 2, Lyon 3 et ENS","24481",null,"A venir","-","non concerné","initiale","non","non"]
["master","lettres","lettres modernes (dont M2 Lettres et études culturelles en ligne)","20160400","Lyon 2, Lyon 3, ENS Lyon","34268","29/04/2016","MAQUETTES INITIALES\\MI_ALL_MASTER_ lettres_lettres modernes.xlsx","-","non concerné","initiale","non","non","oui"]
["master","lettres","métiers des institutions culturelles","20160400",null,"34268","29/04/2016","MAQUETTES INITIALES\\MI_ALL_MASTER_ lettres_lettres et arts.xlsx",null,"A venir","initiale","non","non","oui"]
["master","traduction et interprétation","métiers de la rédaction et de la traduction","20160404","Lyon 2, Lyon 3","34116","29/04/2016","MAQUETTES INITIALES\\MI_ALL_MASTER_traduction_métier de la rédaction et de la traduction.xlsx","15/05/2020","MAQUETTES MODIFIEES\\MM_ALL_MASTER_traduction et interprétation_MRT_MCC_15.05.2020.pdf","initiale","non","non","oui"]
["master","science politique","enjeux sociaux et politiques de santé","20160449","Lyon 2, ENS Lyon","31506","29/04/2016","MAQUETTES INITIALES\\MI_DEPT_MASTER_sciences politiques_enjeux politique santé.xls",null,"A venir","initiale, continue","non","non","oui"]
["master","science politique","gouvernance et politiques urbaines alternatives (Altervilles)","20160449",null,"31506","17/06/2016","MAQUETTES INITIALES\\MI_DEPT_MASTER_alterville.xls",null,"A venir","initiale, continue","non","non","oui"]
["master","science politique","politiques européennes - voisinages de l'UE (AlterEurope)","20160449","Lyon 2, ENS Lyon","31506","-","MAQUETTES INITIALES\\MI_DEPT_MASTER_altereurope",null,"A venir","initiale, continue","non","non","oui"]
["master","droit des affaires","droit et affaires santé","20160407","Lyon 2, Lyon 3","34153","20/05/2016","MAQUETTES INITIALES\\MI_DROIT_MASTER_droit des affaires_affaires santé.xlsx",null,"A venir","initiale, continue","oui","oui","oui"]
["master","droit des affaires","droit et entreprise, juriste d'affaires","20160407","Lyon 2, Lyon 3","34153","-","MAQUETTES INITIALES\\MI_DROIT_MASTER_droit des affaires_droit et entreprise.xlsx",null,"A venir","initiale, continue","non","oui","oui"]
["master","droit des affaires","gestion des ressources humaines de l'entreprise et droit social","20160407","Lyon 2, Lyon 3","34153",null,"A venir","-","non concerné","initiale, continue"]
["master","droit public","acteurs publics","20160409","Lyon2, Lyon 3","34084",null,"A venir","-","non concerné","initiale","non","non"]
["master","droit public","contrats publics","20160409","Lyon 2, Lyon 3","34084","20/05/2016","MAQUETTES INITIALES\\MI_DROIT_MASTER_droit public_contrats publics.xlsx","03/05/2019","MAQUETTES MODIFIEES\\MM_DROIT_MASTER_droit public_droit des contrats publics_03.05.2019.pdf","initiale, continue","oui","oui","oui"]
["master","droit public","droit et administration","20160409","Lyon 2 , Lyon 3","34084","20/05/2016","MAQUETTES INITIALES\\MI_DROIT_MASTER_droit public_droit et administration.xlsx","24/09/2020","MAQUETTES MODIFIEES\\MM_DROIT_MASTER_droit public_droit et administration_24.09.2020.pdf","initiale","non","non","oui"]
["master","droit public","droit international européen et comparé (DIEC)","20160409","Lyon2, Lyon 3","34084",null,"A venir","-","non concerné","initiale","non","non"]
["master","droit public","droit public fondamental","20160409","Lyon 2, Lyon 3","34084","20/05/2016","MAQUETTES INITIALES\\MI_DROIT_MASTER_droit public_droit public fondamental.xlsx","03/05/2019","MAQUETTES MODIFIEES\\MM_DROIT_MASTER_droit public fondamental_03.05.2019.pdf","initiale","non","non","oui"]
["master","justice, procès et procédures","civil","20160414","Lyon 2, Lyon 3","34098",null,"A venir","-","non concerné","initiale","non","non"]
["master","justice, procès et procédures","pénal","20160414","Lyon 2, Lyon 3","34098",null,"A venir","-","non concerné","initiale","non","non"]
["master","analyse et politique économique","conseil en développement territorial","20160406","-","34424","29/04/2016","MAQUETTES INITIALES\\MI_IAE_MASTER_analyse et politique économique_conseil en développement territorial.xlsx",null,"A venir","continue","oui","oui","oui"]
["master","analyse et politique économique","data science & management de l'Innovation","20160406","Lyon 2, ENS Lyon","34424","29/04/2016","MAQUETTES INITIALES\\MI_IAE_MASTER_analyse et politique économique_intelligence économique.xlsx",null,"A venir","initiale, continue","non","non","oui"]
["master","analyse et politique économique","political engineering","20160406","Lyon 2, ENS Lyon","34424","08/07/2021","MAQUETTES MODIFIEES\\MM_IAE_MASTER_APE_ingénierie politique_08.07.2021.xlsx",null,"A venir","initiale","non","non","oui"]
["master","acoustique","bioacoustique",null,"ECL, INSA, ENTPE","31469",null,"A venir","-","non concerné"]
["master","chimie et sciences des matériaux","-","20160445","ENSM St-Etienne, EC Lyon, Lyon1, Institut Mines-Télécom","34112","-","MAQUETTES INITIALES\\MI_FST_MASTER_chimie_sciences des matériaux","-","MAQUETTES MODIFIEES\\MM_FST_LICENCE_chimie et sciences des matériaux.xlsx","initiale, continue","oui","oui","oui"]
["master","chimie et sciences des matériaux","plasturgie","20160445","ENSM St-Etienne, EC Lyon, Lyon1, Institut Mines-Télécom","34112","-","MAQUETTES INITIALES\\MI_FST_MASTER_chimie_sciences des matériaux","-","MAQUETTES MODIFIEES\\MM_FST_LICENCE_chimie et sciences des matériaux.xlsx","initiale, continue","oui","oui","oui"]
["master","électronique, énergie électrique, automatique (EEA CPI)","CPI","20160461",null,"34117",null,"A venir","-","non concerné"]
["master","informatique","cyber-physical social systems","20160459","Lyon 1, Ecole Centrale de Lyon,  ENS lyon, Lyon 2, Ecole des Mines de St-Etienne","34126","20/05/2016","MAQUETTES INITIALES\\MI_FST_MASTER_informatique_CPS2","24/09/2020","MAQUETTES MODIFIEES\\MM_FST_MASTER_CPS2_24.09.2020.xlsx","initiale","non","non","oui"]
["master","informatique","données et systèmes connectés","20160459","Lyon 1 , Ecole Centrale de Lyon , ENS lyon , Lyon 2 , Ecole des Mines de St-Etienne","34126","20/05/2016","MAQUETTES INITIALES\\MI_FST_MASTER_info_DSC","28/06/2019","MAQUETTES MODIFIEES\\MM_FST_MASTER_informatique_DSC_28.06.2019.pdf","initiale, continue","oui","oui","oui"]
["master","informatique","machine learning data mining","20160459","Lyon 1 , Ecole Centrale de Lyon ,  ENS lyon , Lyon 2 , Ecole des Mines de St Etienne","34126","20/05/2016","MAQUETTES INITIALES\\MI_FST_MASTER_informatique_MLDM","03/05/2019","MAQUETTES MODIFIEES\\MM_FST_MASTER_informatique_MLDM_03.05.2019.pdf","initiale","non","non","oui"]
["master","mathématiques appliquées, statistiques","mathématiques en action","20160466","ENSM St-Etienne, EC Lyon, Lyon1, ENS Lyon, Institut Mines-Telecom","34039","20/05/2016","MAQUETTES INITIALES\\MI_FST_MASTER_mathématiques appliqués statistiques","-","non concerné","initiale","non","non","oui"]
["master","OIVM - optique, image, vision, multimédia","advanced imaging and material appearance (AIMA)","20160571","ENSM St-Etienne, EC Lyon, Institut Mines-Telecom","23345","17/06/2016","MAQUETTES INITIALES\\MI_FST_MASTER_OIVM_AIMA","18/06/2021","MAQUETTES MODIFIEES\\MM_FST_MASTER_OIVM_AIMA_18.06.2021.xlsx","initiale, continue","non","non","oui"]
["master","OIVM - optique, image, vision, multimédia","computational colour and spectral imaging (COSI 2)","20160571","ENSM St-Etienne, EC Lyon, Institut Mines-Telecom","23345","-","MAQUETTES INITIALES\\MI_FST_MASTER_OIVM_color science","18/06/2021","MAQUETTES MODIFIEES\\MM_FST_MASTER_COSI_18.06.2021.xlsx","initiale","non","non","oui"]
["master","OIVM - optique, image, vision, multimédia","photonics engineering","20160571","ENSM St-Etienne, EC Lyon, Institut Mines-Telecom","23345",null,"A venir","-","non concerné","initiale, continue","non","non","oui"]
["master","OIVM - optique, image, vision, multimédia","photonics for security, reliability and safety (PSRS)","20160571","ENSM St-Etienne, EC Lyon, Institut Mines-Telecom","23345","2020","MAQUETTES INITIALES\\MI_FST_MASTER_PSRS_2020.xlsx","18/06/2021","MAQUETTES MODIFIEES\\MM_FST_MASTER_PSRS_ HORS UJM_18.06.2021.xlsx","initiale","non","non","oui"]
["master","OIVM - optique, image, vision, multimédia","radiation and its Effects on micro electronics and photonics technologies (RADMEP)","20160571","ENSM St-Etienne, EC Lyon, Institut Mines-Telecom","23345","18/06/2021","MAQUETTES INITIALES\\MI_FST_MASTER_OIVM_RADMEP_18.06.2021.xlsx","-","non concerné","initiale","non","non","oui"]
["master","OIVM - optique, image, vision, multimédia","science in imaging and light in extended reality (IMLEX)","20160571","ENSM St-Etienne, EC Lyon, Institut Mines-Telecom","23345","2020","MAQUETTES INITIALES\\MI_FST_MASTER_IMLEX_2020.xlsx","-","non concerné","initiale","non","non","oui"]
["master","sciences du vivant","bioacoustique","20160573","-","34822","18/06/2021","MAQUETTES INITIALES\\MI_FST_MASTER_éthologie_bioacoustics_18.06.2021.xlsx",null,"A venir","initiale","non","non","oui"]
["master","sciences du vivant","écologie chimique","20160573","-","34822",null,"A venir","-","non concerné","initiale","non","non","oui"]
["master","sciences du vivant","éthologie et écologie","20160573","-","34822",null,"A venir","-","non concerné","initiale","non","non","oui"]
["master","sciences et techniques des activités physiques et sportives (STAPS) : entraînement et optimisation de la performance sportive (EOP)","évaluation et ingénierie de la performance sportive (EIPS)","20160493","Lyon 1","32169","20/05/2016","MAQUETTES INITIALES\\MI_FST_MASTER_STAPS_EOP","-","MAQUETTES MODIFIEES\\MM_FST_MASTER_STAPS_EOPS_2017_2018.xlsx","initiale, continue","non","non","oui"]
["master","sciences et techniques des activités physiques et sportives (STAPS) : entraînement et optimisation de la performance sportive (EOP)","health performance science (HPS)","20160493","-","32169",null,"A venir","-","non concerné","initiale, continue","non","non","oui"]
["master","comptabilité-contrôle-audit","-","20160540","Lyon 3","31489","-","MAQUETTES INITIALES\\MI_IAE_MASTER_comptabilité contrôle audit_formation intiale et alternance.xlsx","03/05/2019","MAQUETTES MODIFIEES\\MM_IAE_MASTER_comptabilité contrôle audit_03.05.2019.xlsx","initiale","oui","oui","oui"]
["master","contrôle de gestion et audit organisationnel","contrôle de gestion et systèmes d’information (CGSI)","20160541","-","35918",null,"A venir","-","non concerné","initiale, continue"]
["master","design","prospective design","20160567","ENSM St-Etienne, Institut Mines-Telecom, ESAD St-Etienne","34439","29/04/2016","MAQUETTES INITIALES\\MI_IAE_MASTER_design_prospectiv design.xlsx","2017","MAQUETTES MODIFIEES\\MM_IAE_MASTER_design_prospectiv design_2017.xlsx","initiale, continue","non","non","oui"]
["master","entrepreunariat et management de projets","entrepreunariat",null,"Lyon 3","35922",null,"A venir","-","non concerné","initiale","oui","oui"]
["master","entrepreunariat et management de projets","management de projet (IREIS)",null,"Lyon 3","35922",null,"A venir","-","non concerné","initiale","oui","oui"]
["master","finance","conseils et ingénierie financière",null,"-","35913",null,"A venir","-","non concerné","initiale","non","non"]
["master","information, communication","stratégies de communication, management et marketing digital","20160434","Lyon1, ENSSIB Lyon, Lyon2","31496","23/06/2017","MAQUETTES MODIFIEES\\MM_IAE_MASTER_information communication_marketing digital_23.06.2017.xlsx",null,"A venir","initiale, continue","non","non","oui"]
["master","management","management de commerce et distribution","20160556","Lyon 3","35917","29/04/2016","MAQUETTES INITIALES\\MI_IAE_MASTER_management_management commerce et distribution.xlsx","2017","MAQUETTES MODIFIEES\\MM_IAE_MASTER_management_management commerce et distribution_2017.xlsx","initiale, continue","oui","oui","oui"]
["master","management","management des organisations sanitaires et sociales (MOSS)","20160556",null,"35917","29/04/2016","MAQUETTES INITIALES\\MI_IAE_MASTER_management_management des organisations de la santé.xlsx",null,"A venir","initiale, continue","non","oui","oui"]
["master","management","management international","20160556","Lyon 3","35917","29/04/2016","MAQUETTES INITIALES\\MI_IAE_MASTER_management_management international.xlsx","-","non concerné","initiale, continue","non","non","oui"]
["master","management et administration des entreprises","études et recherches en management","20160558","Lyon 3","35916","20/05/2016","MAQUETTES INITIALES\\MI_IAE_MASTER_management et administration des entreprises_recherche en management.xls","23/06/2017","MAQUETTES MODIFIEES\\MM_IAE_MASTER_management et administration des entreprises_recherche en management_03.06.2017.xlsx","initiale","non","non","oui"]
["master","management et administration des entreprises","management général - double compétence","20160558","Lyon 3","35916",null,"A venir","-","non concerné","initiale","oui","oui"]
["master","marketing, vente","marketing et stratégie d'innovation",null,"-","35907",null,"A venir","-","non concerné","initiale","non","non"]
["master","monnaie, banque, finance, assurance","chargé d'affaires en banque : patrimoine et entreprises","20160417","Lyon 2 , ENS Lyon","34034","-","-",null,"A venir","initiale","oui","oui","non"]
["master","électronique, énergie électrique, automatique","traitement de l’information et instrumentation pour l’ingénieur","20160461","EC Lyon, Lyon 1","34117","-","MAQUETTES INITIALES\\MI_FST_MASTER_électronique énergie électrique automatique_CPI.xlsx","28/09/2018","MAQUETTES MODIFIEES\\MM_FST_MASTER_électronique énergie électrique automatique_T3I_alternance_28.09.2018.pdf","initiale","oui","oui"]
["master","électronique, énergie électrique, automatique","traitement de l’information et instrumentation pour l’ingénieur - alternance","20160461","EC Lyon, Lyon 1","34117",null,"A venir","-","non concerné","continue","oui","oui"]
["master","génie industriel","gestion et ingénierie des systèmes industriels et de santé (GISIS)","20160570","ENI St-Etienne,ENSM St-Etienne, EC Lyon, Institut Mines-Telecom, SIGMA Clermont, Université Clermont-Auvergne","34113","-","MAQUETTES INITIALES\\MI_CUR_MASTER_génie industriel_GISIH FI.xlsx",null,"A venir","initiale","oui","oui"]
["master","génie industriel","méthodes avancées de génie industriel (MAGI)","20160570","UCA, ECI, ENMSE","34113","-","MAQUETTES INITIALES\\MI_CUR_MASTER_génie industriel_MAGI","06/12/2019","MAQUETTES MODIFIEES\\MM_CUR_MASTER_GI_MAGI","initiale","oui","oui","oui"]
["master","génie industriel","méthodes avancées de génie industriel (MAGI) - alternance","20160570","UCA, ECI, ENMSE","34113",null,"A venir","-","non concerné","continue","oui","oui"]
["master","biologie moléculaire et cellulaire","leading international vaccinology education (LIVE)","20160437","Lyon 1","34272","15/09/2017","MAQUETTES INITIALES\\MI_MEDECINE_MASTER_biologie moléculaire et cellulaire_live_15.09.2017.xlsx","-","non concerné","initiale","non","non","oui"]
["master","ingénierie de la santé","bioingénierie en santé","20160465","ENSM St-Etienne, EC Lyon, Lyon 1, Institut Mines-Telecom","34075","-","A VERIFIER","-","A venir","initiale, continue","oui","oui","non"]
["master","ingénierie de la santé","ingénierie de la neuromotricité","20160465","ENSM St-Etienne, EC Lyon, Lyon 1, Institut Mines-Telecom","34075","-","A VERIFIER","-","A VERIFIER","initiale, continue","oui","oui","non"]
["master","ingénierie de la santé","ingénierie de la prévention en santé","20160465","ENSM St-Etienne, EC Lyon, Lyon 1, Institut Mines-Telecom","34075",null,"A VERIFIER",null,"A venir","initiale, continue","oui","oui","non"]
["master","santé publique","conseiller en génétique et génomique",null,"ECL - Lyon 1 - VetAgro Sup","34291",null,"A venir","-","non concerné"]
["master","santé publique","Methods in drug developement and evaluation (MDDE) Prevention, Health Promotion, Global Health",null,"ECL - Lyon 1 - VetAgro Sup","34291",null,"A venir","-","non concerné"]
["master","géomatique","géographies numériques","20160429","Lyon 2, ENS Lyon, Lyon 3 ?","34852","17/06/2016","MAQUETTES INITIALES\\MI_SHS_MASTER_géomatique_géographies numériques.xlsx","21/06/2019","MAQUETTES MODIFIEES\\MM_SHS_MASTER_géomatique_géographie numériques_21.06.2019.xlsx","initiale, continue","non","non","oui"]
["master","gestion de l’environnement","prévention et gestion des altérations environnementales","20160427","ENSM St-Etienne, Institut Mines Telecom,Lyon 2, Lyon 3, ENS","34092","17/06/2016","MAQUETTES INITIALES\\MI_SHS_MASTER_gestion de l'environnement_prévention gestion des altérations environnementales.xlsx","21/06/2019","MAQUETTES MODIFIEES\\MM_SHS_MASTER_gestion de l'environnement_PGAE_21.06.2019.xlsx","initiale, continue","non","non","oui"]
["master","histoire","métier de l’historien","20160430","Lyon 2, Lyon 3, ENS Lyon","31457","17/06/2016","MAQUETTES INITIALES\\MI_SHS_MASTER_histoire métiers de l'historien.xlsx","18/06/2021","MAQUETTES MODIFIEES\\MM_SHS_MASTER_histoire_métiers de l'historien_18.06.2021.xlsx","initiale, continue","non","non","oui"]
["master","histoire, civilisations, patrimoine","dynamics of cultural landscapes and heritage management (DYCLAM)","20160432","ENTPE Lyon, ENSSIB Lyon, Lyon 2","34096","04/12/2015","MAQUETTES INITIALES\\MI_SHS_MASTER_DYCLAM","21/06/2019","MAQUETTES MODIFIEES\\MM_SHS_MASTER_DYCLAM_21.06.2019","initiale","non","non","oui"]
["master","histoire, civilisations, patrimoine","management et médiation des patrimoines","20160432","-","34096",null,"A venir","-","non concerné","initiale","non","non"]
["master","intervention et développement social","politiques sociales et développement territorial","20160435","Lyon 2","34132","-","MAQUETTES INITIALES\\MI_SHS_MASTER_intervention développement social","19/06/2020","MAQUETTES MODIFIEES\\MM_SHS_MASTER_intervention et développement social_19.06.2020.xlsx","initiale, continue","non","non","oui"]
["master","sciences de l’éducation et de la formation","conception et réalisation de dispositifs et de projets, secteur enfance/jeunesse","20160453","Lyon 2","31849",null,"A venir","-","non concerné","initiale","non","non","oui"]
["master","sciences de l’éducation et de la formation","expertise et recherche en éducation","20160453","Lyon 2","31849",null,"A venir","-","non concerné","initiale, continue","non","non","oui"]
["master","sociologie","formes et outils de l’enquête en sciences sociales","20160455","Lyon 2, ENS Lyon","31499","17/06/2016","MAQUETTES INITIALES\\MI_SHS_MASTER_sociologie_formes et outils de l'enquête","18/06/2021","MAQUETTES MODIFIEES\\MM_SHS_MASTER_sociologie_FOULE_18.06.2021.xlsx","initiale, continue","non","non","oui"]
["master","information, communication","design de communication : innovation et médiation numérique","20160434","Lyon1, ENSSIB Lyon, Lyon2, Lyon 3, ENS Lyon","31496","-","maquette indisponible","18/06/2021","MAQUETTES MODIFIEES\\MM_TSE_MASTER_information communication_design de communication_18.06.2021.pdf","initiale, continue","oui","oui","oui"]
["master","OIVM - optique, image, vision, multimédia","ITXR, imaging technologies for extended reality","20160571","ENSM St-Etienne, EC Lyon, Institut Mines-Telecom","23345","18/06/2021","MAQUETTES INITIALES\\MI_TSE__MASTER_OIVM_master Imaging Technologies for extented reality_18.06.2021.pdf","-","non concerné","initiale","non","non","oui"]

{"sheet":"liste automatisée mentions","index":5,"n_rows":42,"n_cols":4,"rows_kept":42,"cut":false,"hidden":true,"merged":[]}
["PERIODE  D'ACCREDITATION","DIPLÔME","MENTION / INTITULE","STATUT  DE LA FORMATION POUR LES IA  DE L'ANNE EN COURS"]
["2022-2025","master","acoustique","N-OF- création mention et parcours"]
["2022-2025","master","analyse et politique économique","N-OF - nouveau rattachement"]
["2016-2025","master","arts","ouvert"]
["2016-2025","master","biologie moléculaire et cellulaire","ouvert"]
["2016-2025","master","chimie et sciences des matériaux","ouvert"]
["2016-2025","master","comptabilité-contrôle-audit","ouvert"]
["2022-2025","master","contrôle de gestion et audit organisationnel","N-OF - création parcours"]
["2022-2025","master","design","N-OF - nouveau nom parcours"]
["2022-2025","master","didactique des langues","N-OF - nouveau nom parcours"]
["2022-2025","master","droit des affaires","N-OF - nouveau nom parcours"]
["2022-2025","master","droit public","N-OF - création parcours"]
["2022-2025","master","électronique, énergie électrique, automatique","N-OF - nouveau rattachement"]
["2016-2025","master","électronique, énergie électrique, automatique (EEA CPI)","ouvert"]
["2022-2025","master","entrepreunariat et management de projets","N-OF - création mention"]
["2022-2025","master","finance","N-OF- création mention et parcours"]
["2022-2025","master","génie industriel","N-OF - nouveau rattachement"]
["2016-2025","master","géomatique","ouvert"]
["2016-2025","master","gestion de l’environnement","ouvert"]
["2016-2025","master","histoire","ouvert"]
["2016-2025","master","histoire, civilisations, patrimoine","ouvert"]
["2022-2025","master","information, communication","N-OF - nouveau nom parcours"]
["2016-2025","master","informatique","ouvert"]
["2022-2025","master","ingénierie de la santé","N-OF - nouveau nom parcours"]
["2016-2025","master","intervention et développement social","ouvert"]
["2022-2025","master","justice, procès et procédures","N-OF - création parcours"]
["2016-2025","master","langues étrangères appliquées","ouvert"]
["2022-2025","master","langues, littératures et civilisations étrangères et régionales","N-OF - nouveau nom parcours"]
["2022-2025","master","lettres","N-OF - création parcours"]
["2016-2025","master","management","ouvert"]
["2016-2025","master","management et administration des entreprises","ouvert"]
["2022-2025","master","marketing, vente","N-OF- création mention et parcours"]
["2016-2025","master","mathématiques appliquées, statistiques","ouvert"]
["2022-2025","master","monnaie, banque, finance, assurance","N-OF - nouveau nom parcours"]
["2016-2025","master","OIVM - optique, image, vision, multimédia","ouvert"]
["2022-2025","master","santé publique","N-OF- création mention et parcours"]
["2022-2025","master","science politique","N-OF - nouveau nom parcours"]
["2022-2025","master","sciences de l’éducation et de la formation","N-OF - nouveau nom mention"]
["2022-2025","master","sciences du vivant","N-OF - nouveau nom mention"]
["2016-2025","master","sciences et techniques des activités physiques et sportives (STAPS) : entraînement et optimisation de la performance sportive (EOP)","ouvert"]
["2016-2025","master","sociologie","ouvert"]
["2016-2025","master","traduction et interprétation","ouvert"]

{"sheet":"liste automatisée parcours","index":6,"n_rows":87,"n_cols":4,"rows_kept":87,"cut":false,"hidden":true,"merged":[]}
["PERIODE  D'ACCREDITATION","DIPLÔME","PARCOURS","STATUT  DE LA FORMATION POUR LES IA  DE L'ANNE EN COURS"]
["2016-2025","master","-","ouvert"]
["2022-2025","master","acteurs publics","N-OF - création parcours"]
["2016-2025","master","administration et gestion de la musique","ouvert"]
["2016-2025","master","advanced imaging and material appearance (AIMA)","ouvert"]
["2022-2025","master","art dramatique","N-OF - création parcours"]
["2016-2025","master","arts plastiques","ouvert"]
["2022-2025","master","bioacoustique","N-OF- création mention et parcours"]
["2022-2025","master","bioingénierie en santé","N-OF - nouveau nom parcours"]
["2022-2025","master","chargé d'affaires en banque : patrimoine et entreprises","N-OF - nouveau nom parcours"]
["2022-2025","master","civil","N-OF - création parcours"]
["2016-2025","master","computational colour and spectral imaging (COSI 2)","ouvert"]
["2022-2025","master","conception et réalisation de dispositifs et de projets, secteur enfance/jeunesse","N-OF - nouveau nom mention"]
["2022-2025","master","conseil en développement territorial","N-OF - nouveau rattachement"]
["2022-2025","master","conseiller en génétique et génomique","N-OF- création mention et parcours"]
["2022-2025","master","conseils et ingénierie financière","N-OF- création mention et parcours"]
["2016-2025","master","contrats publics","ouvert"]
["2022-2025","master","contrôle de gestion et systèmes d’information (CGSI)","N-OF - création parcours"]
["2016-2025","master","CPI","ouvert"]
["2022-2025","master","création contemporaine et nouvelles technologies","N-OF - création parcours"]
["2022-2025","master","création et recherche en arts plastiques","N-OF - création parcours"]
["2022-2025","master","cultures et interculturalité des médias dans les mondes espagnol et latino-américain","N-OF - nouveau nom parcours"]
["2016-2025","master","cyber-physical social systems","ouvert"]
["2022-2025","master","data science & management de l'Innovation","N-OF - nouveau rattachement"]
["2016-2025","master","design de communication : innovation et médiation numérique","ouvert"]
["2016-2025","master","données et systèmes connectés","ouvert"]
["2016-2025","master","droit et administration","ouvert"]
["2022-2025","master","droit et affaires santé","N-OF - nouveau nom parcours"]
["2022-2025","master","droit et entreprise, juriste d'affaires","N-OF - nouveau nom parcours"]
["2022-2025","master","droit international européen et comparé (DIEC)","N-OF - création parcours"]
["2016-2025","master","droit public fondamental","ouvert"]
["2016-2025","master","dynamics of cultural landscapes and heritage management (DYCLAM)","ouvert"]
["2022-2025","master","écologie chimique","N-OF - création parcours"]
["2016-2025","master","édition d’art et livre d’artiste","ouvert"]
["2022-2025","master","enjeux sociaux et politiques de santé","N-OF - nouveau nom parcours"]
["2022-2025","master","entrepreunariat","N-OF - création mention"]
["2022-2025","master","éthologie et écologie","N-OF - nouveau nom mention"]
["2016-2025","master","études anglophones","ouvert"]
["2016-2025","master","études et recherches en management","ouvert"]
["2016-2025","master","évaluation et ingénierie de la performance sportive (EIPS)","ouvert"]
["2022-2025","master","expertise et recherche en éducation","N-OF - nouveau nom mention"]
["2022-2025","master","FLE, ingénierie des formations en langues","N-OF - nouveau nom parcours"]
["2016-2025","master","formes et outils de l’enquête en sciences sociales","ouvert"]
["2016-2025","master","géographies numériques","ouvert"]
["2022-2025","master","gestion des ressources humaines de l'entreprise et droit social","N-OF - création parcours"]
["2022-2025","master","gestion et ingénierie des systèmes industriels et de santé (GISIS)","N-OF - nouveau rattachement"]
["2022-2025","master","gouvernance et politiques urbaines alternatives (Altervilles)","N-OF - nouveau rattachement"]
["2022-2025","master","health performance science (HPS)","N-OF - création parcours"]
["2016-2025","master","ingénierie de la neuromotricité","ouvert"]
["2022-2025","master","ingénierie de la prévention en santé","N-OF - nouveau nom parcours"]
["2016-2025","master","ITXR, imaging technologies for extended reality","ouvert"]
["2016-2025","master","leading international vaccinology education (LIVE)","ouvert"]
["2016-2025","master","lettres modernes (dont M2 Lettres et études culturelles en ligne)","ouvert"]
["2016-2025","master","machine learning data mining","ouvert"]
["2016-2025","master","management de commerce et distribution","ouvert"]
["2022-2025","master","management de projet (IREIS)","N-OF - création mention"]
["2022-2025","master","management des organisations sanitaires et sociales (MOSS)","N-OF - nouveau nom parcours"]
["2022-2025","master","management et médiation des patrimoines","N-OF - création parcours"]
["2022-2025","master","management général - double compétence","N-OF - création parcours"]
["2016-2025","master","management international","ouvert"]
["2022-2025","master","marketing et stratégie d'innovation","N-OF- création mention et parcours"]
["2016-2025","master","mathématiques en action","ouvert"]
["2022-2025","master","méthodes avancées de génie industriel (MAGI)","N-OF - nouveau rattachement"]
["2022-2025","master","méthodes avancées de génie industriel (MAGI) - alternance","N-OF - nouveau rattachement"]
["2022-2025","master","Methods in drug developement and evaluation (MDDE) Prevention, Health Promotion, Global Health","N-OF- création mention et parcours"]
["2016-2025","master","métier de l’historien","ouvert"]
["2016-2025","master","métiers de la rédaction et de la traduction","ouvert"]
["2022-2025","master","métiers des institutions culturelles","N-OF - nouveau nom parcours"]
["2022-2025","master","métiers et industrie d'art","N-OF - nouveau nom parcours"]
["2016-2025","master","musique et musicologie","ouvert"]
["2022-2025","master","pénal","N-OF - création parcours"]
["2022-2025","master","photonics engineering","N-OF - nouveau nom parcours"]
["2016-2025","master","photonics for security, reliability and safety (PSRS)","ouvert"]
["2016-2025","master","plasturgie","ouvert"]
["2022-2025","master","political engineering","N-OF - nouveau rattachement"]
["2022-2025","master","politiques européennes - voisinages de l'UE (AlterEurope)","N-OF - nouveau nom mention"]
["2016-2025","master","politiques sociales et développement territorial","ouvert"]
["2016-2025","master","prévention et gestion des altérations environnementales","ouvert"]
["2016-2025","master","prospective design","ouvert"]
["2016-2025","master","radiation and its Effects on micro electronics and photonics technologies (RADMEP)","fermé"]
["2016-2025","master","relations commerciales internationales","ouvert"]
["2016-2025","master","science in imaging and light in extended reality (IMLEX)","ouvert"]
["2016-2025","master","sciences de l’art","ouvert"]
["2022-2025","master","sociodidactique, valorisation de la diversité linguistique et culturelle","N-OF - nouveau nom parcours"]
["2022-2025","master","stratégies de communication, management et marketing digital","N-OF - nouveau nom parcours"]
["2022-2025","master","traitement de l’information et instrumentation pour l’ingénieur","N-OF - nouveau rattachement"]
["2022-2025","master","traitement de l’information et instrumentation pour l’ingénieur - alternance","N-OF - nouveau rattachement"]

{"sheet":"LISTES","index":7,"n_rows":12,"n_cols":11,"rows_kept":12,"cut":false,"hidden":true,"merged":[]}
["Choisir la composante dans le menu déroulant","choisir dans la liste","Stage-Choisir la durée ici","Choisir le semestre dans le menu déroulant","EN ATTENTE VOTE CFVU","initiale","oui",1,"STAGE- choisir la durée ici","X","Choisir dans la liste"]
["ALL","Obligatoire","stage (heures)","Semestre 1","VALIDEE PAR CFVU","continue","non",2,"STAGE en heures",null,"Facultatif "]
["DEPT","Option","stage (semaines)","Semestre 2","REJETEE PAR CFVU","initiale, continue",null,null,"STAGE en semaines",null,"Obligatoire"]
["ECOLE D'ECONOMIE","Facultatif","stage (mois)","Semestre 3",null,null,null,null,"STAGE en mois",null,"Non rattrapable"]
["DROIT",null,null,"Semestre 4"]
["FST",null,null,"Semestre 5"]
["IAE",null,null,"Semestre 6"]
["IUT ROANNE",null,null,"Semestre 7"]
["IUT ST-ETIENNE",null,null,"Semestre 8"]
["MEDECINE",null,null,"Semestre 9"]
["SHS",null,null,"Semestre 10"]
["TELECOM ST-ETIENNE"]